Category,Program Name,Agency Name,Bureau Name,Funding Amount,Funding Amount Notes,Period of Availability,Funding Mechanism,New Program (Yes/No),Recipients,Program Description,Eligible Uses,Next Program Milestone
Airports and Federal Aviation Administration Facilities,Airport Infrastructure Grants,Department of Transportation,Federal Aviation Administration,"$15,000,000,000",,5 year,Grant,Yes,"Public agency, Private entity, state and Tribal Government owning a public use National Plan of Integrated Airport Systems airport. Airports eligible for Airport Infrastructure Grants include Primary airports, certain cargo airports, and most general aviation/commercial service airports that are not primary airports but in the National Plan of Integrated Airport Systems. This amounts to approximately 3,100 airports.","The funds are allocated in the 3 buckets: Primary Allocation, Non?Primary Allocation, Contract Towers",Project eligibility tracks Passenger Facility Charge eligibility. With the exception of Debt Service. Bipartisan Infrastructure Law specifically states the funds cannot be used for Debt Service.,"May 2022 � Federal Aviation Administration will issue guidance and begin issuing grants for specific projects based on the Fiscal Year 2022 airport allocations announced on December 16, 2021. May 2022- Federal Aviation Administration will issue the Notice of Funding Opportunity for the competitive $20 million (annual) airport owned airport traffic contract tower program."
Airports and Federal Aviation Administration Facilities,Airport Terminal Program,Department of Transportation,Federal Aviation Administration,"$5,000,000,000",,5 year,Grant,Yes,"Public agency, Private entity, state and Tribal Government owning a public use National Plan of Integrated Airport Systems airport. Secretary of the Interior for Midway Island Airport, the Republic of the Marshall Islands, Federated States of Micronesia and Republic of Palau.","Provide grants to eligible airports for capital improvements for airport terminal development generally defined as development of an airport passenger terminal building, including terminal gates; access roads servicing exclusively airport traffic that leads directly to or from an airport passenger terminal building; walkways that lead directly to or from an airport passenger terminal building; multimodal terminal development; and projects for on-airport rail access projects. As well as projects for relocating, reconstructing, repairing or improving an airport-owned airport traffic control tower.","Capital improvements for airport terminal development generally defined as development of an airport passenger terminal building, including terminal gates; access roads servicing exclusively airport traffic that leads directly to or from an airport passenger terminal building; walkways that lead directly to or from an airport passenger terminal building; multimodal terminal development; and projects for on-airport rail access projects. As well as projects for relocating, reconstructing, repairing or improving an airport-owned air traffic control tower.",February 2022 � Issue Notice of Funding Opportunity for the Fiscal Year 2022 competitive program.
Broadband,Affordable Connectivity Program,Federal Communications Commission,Wireline Competition Bureau,"$14,200,000,000",,Available until expended,Subsidies provided directly to internet service providers to apply to consumers' monthly internet bill,No,Internet Service Providers (Who Then Apply the Benefit to Consumers' Monthly Bills),"The Affordable Connectivity Program is a Federal Communications Commission benefit program that helps ensure that low-income households can afford the broadband they need for work, school, healthcare and more.","The Affordable Connectivity Program helps low income households afford home broadband service by providing up to a $30 monthly benefit on a household's monthly internet bill. For low-income households on Tribal lands the benefit is up to $75. Eligible households can also receive a one-time discount of up to $100 to purchase a laptop, desktop computer, or tablet from participating providers if the household contributes more than $10 and less than $50 toward the purchase price. The Affordable Connectivity Program is limited to one monthly service discount and one device discount per household.",The Federal Communications Commission is seeking comment on: How best to structure a grant program focused on outreach to households eligible to participate in the Affordable Connectivity Plan; Whether to launch a potential pilot program focused on increasing the awareness and enrollment in the Affordable Connectivity Program of eligible households participating in Federal Public Housing Assistance Programs; and Establishment of a mechanism by which a participating provider in a high-cost area may receive an enhanced benefit of up to $75 per month for broadband service.
Broadband,Denali Commission Broadband Funding,Denali Commission,Denali Commission,"$250,000",,Available until expended,Grant,No,"States, Counties, Cities / Townships, Special Districts, Tribal Governments (federally recognized), Public Higher-Ed Institutions, Public Housing Authorities, Indian Housing Authorities, Nonprofits with 501(c)(3) status, Nonprofits - without 501(c)(3) status",Program to assist rural Alaskan communities in planning and build out of modern broadband capabilities.,Broadband planning and build-out,"Notice of Funding Opportunity released March 22nd, 2022."
Broadband,"Distance Learning, Telemedicine, And Broadband Program: Broadband Loans",Department of Agriculture,Rural Utilities Service,"$74,000,000",,Available until expended,Direct Loan,No,Corporation; Limited Liability Company; Cooperative or Mutual Organization; A State or Local Unit of Government; Indian Tribe or Tribal Organization Individuals and Partnerships Are Not Eligible.,"The Rural Broadband Access Loan and Loan Guarantee Program (Broadband Program) make loans and loan guarantees to finance construction, improvement, or acquisition of facilities and equipment needed to provide high speed broadband service in eligible rural areas.","Broadband infrastructure: broadband loans provide funding on a technology-neutral basis for financing: the construction, improvement, and acquisition of facilities required to provide broadband service, including facilities required for providing other services through the same facilities; the cost of leasing facilities required to provide service at the broadband Lending speed if such lease qualifies as a capital lease under Generally Accepted Accounting Principles; and the acquisition of such facilities, under certain circumstances and with restrictions. For additional detail see 7 CFR 1738",Estimated application opening date: TBD
Broadband,"Distance Learning, Telemedicine, And Broadband Program: Reconnect Program",Department of Agriculture,Rural Utilities Service,"$1,926,000,000",,Available until expended,Direct Loan/Grant/Combo,No,"Corporations; Limited Liability Companies and Limited Liability Partnerships; Cooperatives or Mutual Organizations; States or Local governments, including any agency, subdivision, instrumentality of political subdivision thereof; Territories or Possessions of The United States; and Indian Tribes, as defined in Section 4 Of the Indian Self-Determination and Education Assistance Act (25 U.S.C. 450B)","The ReConnect Program offers loans, grants, and loan-grant combinations to build infrastructure and install equipment that provides modern, reliable, high-speed Internet service in rural America.","ReConnect Program funds can be used to fund the costs of construction, improvement, or acquisition of facilities and equipment needed to provide broadband service capable of delivering 100 Mbps symmetrical service and the acquisition of an existing system not currently providing sufficient access to broadband service, under certain circumstances, and with restrictions. Up to five percent of the award may be used for preapplication expenses.","Estimated application opening date, 3rd quarter 2022."
Broadband,Middle Mile Grants Program,Department of Commerce,National Telecommunications and Information Administration,"$1,000,000,000",,Fiscal Years 2022-2026,Grant,Yes,"States, Counties, Cities/Townships and their subdivisions; Tribal governments; Native entities; Public Utility Districts; Economic Development Authorities, Regional Planning Councils; Technology and Telecommunications Companies; Electric Utilities; Electric Cooperatives,; and Nonprofits.","Establishes and funds a $1 billion program for the construction, improvement or acquisition of middle mile infrastructure. The purpose of the grant program is to expand and extend middle mile infrastructure to reduce the cost of connecting unserved and underserved areas to the internet backbone. Eligible applicants include States, political subdivisions of a State, Tribal governments, technology companies, electric utilities, utility cooperatives, public utility districts, telecommunications companies, telecommunications cooperatives, nonprofit foundations, nonprofit corporations, nonprofit institutions, nonprofit associations, regional planning councils, Native entities, or economic development authorities.",Broadband infrastructure deployment (e.g. construction),"Estimated application opening date, 2nd quarter 2022."
Broadband,Digital Equity Competitive Grant Program,Department of Commerce,National Telecommunications and Information Administration,"$1,250,000,000",,"Available until expended.  The law authorizes $250 million to be appropriated for each of the first five fiscal years in which funds are made available. From these amounts, at least 5% is to be set aside for grants to Indian tribes, Alaska Native entities, and Native Hawaiian organizations.",Grant,Yes,"Political subdivision, agency, or instrumentality of a state, including an agency of a state that is responsible for administering or supervising adult education and literacy activities, or for providing public housing; an Indian Tribe, an Alaska Native entity, or a Native Hawaiian organization; a foundation, corporation, institution, or association that is a not-for-profit entity and not a school; a community anchor institution; a local educational agency; an entity that carries out a workforce development program; and partnership between any of the above entities.","As part of the Digital Equity Act programs, $2.75 billion was dedicated to establish three grant programs that promote digital inclusion and equity to ensure that all individuals and communities have the skills, technology, and capacity needed to reap the full benefits of our digital economy. The goal of these programs is to promote the meaningful adoption and use of broadband services across the targeted populations in the Act, including low-income households, aging populations, incarcerated individuals, veterans, individuals with disabilities, individuals with a language barrier, racial and ethnic minorities, and rural inhabitants. The Digital Equity Competitive Grant Program is a $1.25 billion discretionary grant program distributed vial annual grant programs over five years to implement digital equity projects. Eligible applicants include specific types of political subdivision, agency, or instrumentality of a state; Tribal governments; nonprofit entities; community anchor institutions; local educational agencies; and entities that carry out workforce development programs.","Broadband adoption/digital literacy/tech support, digital equity programs","Estimated application opening date, TBD."
Broadband,State Digital Equity Capacity Grant Program,Department of Commerce,National Telecommunications and Information Administration,"$1,440,000,000",,"Available until expended.  $240 million for FY2022 and $300 million per year for FY2023 through FY2026. From these amounts at least 5% is to be made available for grants to Indian tribes, Alaska Native entities, and Native Hawaiian organizations.",Grant,No,"Tribal Governments, Tribal organizations, Tribal Colleges or Universities, the Department of Hawaiian Home Lands on behalf of the Native Hawaiian Community, and Alaska Native Corporations. ?","As part of the Digital Equity Act programs, $2.75 billion was dedicated to establish three grant programs that promote digital inclusion and equity to ensure that all individuals and communities have the skills, technology, and capacity needed to reap the full benefits of our digital economy. The goal of these programs is to promote the meaningful adoption and use of broadband services across the targeted populations in the Act, including low-income households, aging populations, incarcerated individuals, veterans, individuals with disabilities, individuals with a language barrier, racial and ethnic minorities, and rural inhabitants. The State Digital Equity Capacity Grant Program is a $1.44 billion formula grant program distributed to fund State, Territory, and Tribal Digital Equity Plans.Eligible applicants any State of the United States, the District of Columbia,  Puerto Rico, U.S. Territories, Indian Tribes, Alaska Native entities, and Native Hawaiian organizations.","Planning (e.g. feasibility), broadband infrastructure deployment (e.g. construction), broadband adoption/digital literacy/tech support, digital skills training (e.g. science, technology, engineering, arts and math, Workforce Development), Devices/equipment (e.g. laptops, hotspots), public connectivity/computer access, research and/or evaluation, data and/or mapping, smart communities/cities/regions, telehealth","Estimated application opening date, TBD"
Broadband,State Digital Equity Planning Grant Program,Department of Commerce,National Telecommunications and Information Administration,"$60,000,000",,"Available until expended. From these amounts at least 5% is to be made available for grants to Indian tribes, Alaska Native entities, and Native Hawaiian organizations.",Grant,No,"Tribal Governments, Tribal organizations, Tribal Colleges or Universities, the Department of Hawaiian Home Lands on behalf of the Native Hawaiian Community, and Alaska Native Corporations. ?","As part of the Digital Equity Act programs, $2.75 billion was dedicated to establish three grant programs that promote digital inclusion and equity to ensure that all individuals and communities have the skills, technology, and capacity needed to reap the full benefits of our digital economy. The goal of these programs is to promote the meaningful adoption and use of broadband services across the targeted populations in the Act, including low-income households, aging populations, incarcerated individuals, veterans, individuals with disabilities, individuals with a language barrier, racial and ethnic minorities, and rural inhabitants. The State Digital Equity Planning Grant Program is a $60 million formula grant program distributed vial annual grant programs over five years to implement digital equity projects. Eligible applicants any State of the United States, the District of Columbia,  Puerto Rico, U.S. Territories, Indian Tribes, Alaska Native entities, and Native Hawaiian organizations.",Digital equity Planning (e.g. feasibility),"Estimated application opening date, 2nd quarter 2022."
Broadband,Tribal Broadband Connectivity Program,Department of Commerce,National Telecommunications and Information Administration,"$2,000,000,000",,Available until expended,Grant,No,"Tribal Governments, Tribal organizations, Tribal Colleges or Universities, the Department of Hawaiian Home Lands on behalf of the Native Hawaiian Community, and Alaska Native Corporations. ?","The Tribal Broadband Connectivity Program provides grants for broadband infrastructure deployment; affordable broadband programs; distance learning, telehealth, digital inclusion efforts; and broadband adoption activities. The program was initially authorized by the Consolidated Appropriations Act, 2021, Division N, Title IX, Section 905, Public Law 116-260, 134 Stat. 1182. The Infrastructure Investment and Jobs Act provides an additional $2 billion to the Tribal Broadband Connectivity Program.","Planning (e.g. feasibility), broadband infrastructure deployment (e.g. construction), broadband adoption/digital literacy/tech support, digital skills training (e.g. science, technology, engineering, arts and math, Workforce Development), Devices/equipment (e.g. laptops, hotspots), public connectivity/computer access, research and/or evaluation, data and/or mapping, smart communities/cities/regions, telehealth","Estimated application opening date, TBD"
Clean Energy and Power,Battery Manufacturing and Recycling Grants,Department of Energy,Energy Efficiency and Renewable Energy,"$3,000,000,000",,Available until expended,Grant,Yes,(1) Institutions of higher education. (2) National Laboratories. (3) Nonprofit and for-profit private entities. (4) State and local governments. (5) Consortia of entities described in paragraphs (1) through (4),To provide grants to ensure that the United States has a viable domestic manufacturing and recycling capability to support a North American battery supply chain.,"Demonstration projects, construction of commercial-scale facilities, and retrofit or retooling of existing facilities for battery component manufacturing, advanced battery manufacturing, and recycling.","Estimated application opening date, 3rd quarter 2022."
Clean Energy and Power,"Building, Training, And Assessment Centers",Department of Energy,Energy Efficiency and Renewable Energy,"$10,000,000",,Available until expended,Grant,Yes,Institutions of Higher Education,To provide grants to institutions of higher education to establish building training and assessment centers to educate and train building technicians and engineers on implementing modern building technologies.,"(1) To identify opportunities for optimizing energy efficiency and environmental performance in buildings; (2) to promote the application of emerging concepts and technologies in commercial and institutional buildings; (3) to train engineers, architects, building scientists, building energy permitting and enforcement officials, and building technicians in energy-efficient design and operation; (4) to assist institutions of higher education and Tribal Colleges or Universities in training building technicians; (5) to promote research and development for the use of alternative energy sources and distributed generation to supply heat and power for buildings, particularly energy-intensive buildings; and (6) to coordinate with and assist State-accredited technical training centers, community colleges, Tribal Colleges or Universities, and local offices of the National Institute of Food and Agriculture and ensure appropriate services are provided under this section to each region of the United States.","Estimated application opening date, 2nd quarter 2022"
Clean Energy and Power,Carbon Capture Demonstration Projects Program,Department of Energy,Office of Clean Energy Demonstrations,"$2,537,000,000",,Available until expended,Cooperative Agreement,Yes,"Technology Developers, Industry, Utilities, Universities, National Laboratories, Engineering and Construction firms, State and Local Governments, Tribal, Environmental Groups, and Community Based Organizations.","To establish a carbon capture technology program for the development of 6 facilities to demonstrate transformational technologies that will significantly improve the efficiency, effectiveness, costs, emissions reductions, and environmental performance of coal and natural gas use, including in manufacturing and industrial facilities.",Of the demonstration projects carried out � (i) 2 shall be designed to capture carbon dioxide from a natural gas electric generation facility; (ii) 2 shall be designed to capture carbon dioxide from a coal electric generation facility; and (iii) 2 shall be designed to capture carbon dioxide from an industrial facility not purposed for electric generation.,TBD
Clean Energy and Power,Carbon Capture Large-Scale Pilot Programs,Department of Energy,Office of Clean Energy Demonstrations,"$937,000,000",,Available until expended,Cooperative Agreement,Yes,"Technology Developers, Industry, Utilities, Universities, National Laboratories, Engineering and Construction firms, State and Local Governments, Tribal, Environmental Groups, and Community Based Organizations.","To establish a carbon capture technology program for the development of transformational technologies that will significantly improve the efficiency, effectiveness, costs, emissions reductions, and environmental performance of coal and natural gas use, including in manufacturing and industrial facilities.","Pilot projects that�(A) represent the scale of technology development beyond laboratory development and bench scale testing, but not yet advanced to the point of being tested under real operational conditions at commercial scale;(B) represent the scale of technology necessary to gain the operational data needed to understand the technical and performance risks of the technology before the application of that technology at commercial scale or in commercial-scale demonstration; and(C) are large enough�(i)to validate scaling factors; and(ii)to demonstrate the interaction between major components so that control philosophies for a new process can be developed and enable the technology to advance from large-scale pilot project application to commercial-scale demonstration or application.","Estimated application opening date, TBD"
Clean Energy and Power,Clean Hydrogen Manufacturing Recycling,Department of Energy,Energy Efficiency and Renewable Energy,"$500,000,000",,Available until expended,"Grants, Contracts, Cooperative Agreements, and any other agreements authorized under this Act or other Federal law",Yes,Industry Partner,"To provide federal financial assistance to advance new clean hydrogen production, processing, delivery, storage, and use equipment manufacturing technologies and techniques.","(A) Increasing the efficiency and cost-effectiveness of the recovery of raw materials from clean hydrogen technology components and systems; (B) minimizing environmental impacts from the recovery and disposal processes; (C) addressing any barriers to the research, development, demonstration, and commercialization of technologies and processes for the disassembly and recycling; (D) developing alternative materials, designs, manufacturing processes, and other aspects of clean hydrogen technologies; (E) developing alternative disassembly and resource recovery processes that enable efficient, cost-effective, and environmentally responsible disassembly of, and resource recovery from, clean hydrogen technologies; and (F) developing strategies to increase consumer acceptance of, and participation in, the recycling of fuel cells.","Estimated application opening date, 2nd quarter 2022"
Clean Energy and Power,Energy Efficiency and Conservation Block Grant Program,Department of Energy,Energy Efficiency and Renewable Energy,"$550,000,000",,Available until expended,Block and Competitive Grants,Yes,State/Local Government/Tribes,"To assist states, local governments, and Tribes to reduce energy use, reduce fossil fuel emissions, and improve energy efficiency.","(1) Development and implementation of an energy efficiency and conservation strategy (2) retaining technical consultant services to assist the eligible entity in the development of such a strategy, including�(3) conducting residential and commercial building energy audits;(4) establishment of financial incentive programs for energy efficiency improvements;(5) the provision of grants to nonprofit organizations and governmental agencies for the purpose of performing energy efficiency retrofits;(6) development and implementation of energy efficiency and conservation programs for buildings and facilities within the jurisdiction of the eligible entity, including�(A)design and operation of the programs;(B)identifying the most effective methods for achieving maximum participation and efficiency rates;(C)public education;(D)measurement and verification protocols; and(E)identification of energy efficient technologies;(7) development and implementation of programs to conserve energy used in transportation, including�(A) use of flex time by employers;(B) satellite work centers;(C) development and promotion of zoning guidelines or requirements that promote energy efficient development;(D) development of infrastructure, such as bike lanes and pathways and pedestrian walkways;(E) synchronization of traffic signals; and(F) other measures that increase energy efficiency and decrease energy consumption;(8) development and implementation of building codes and inspection services to promote building energy efficiency;(9) application and implementation of energy distribution technologies that significantly increase energy efficiency, including�(A) distributed resources; and(B) district heating and cooling systems;(10) activities to increase participation and efficiency rates for material conservation programs, including source reduction, recycling, and recycled content procurement programs that lead to increases in energy efficiency;(11) the purchase and implementation of technologies to reduce, capture, and, to the maximum extent practicable, use methane and other greenhouse gases generated by landfills or similar sources;(12) replacement of traffic signals and street lighting with energy efficient lighting technologies, including�(A) light emitting diodes; and(B) any other technology of equal or greater energy efficiency;(13) development, implementation, and installation on or in any government building of the eligible entity of onsite renewable energy technology that generates electricity from renewable resources, including�(A) solar energy;(B) wind energy;(C) fuel cells; and(D) biomass;(14) programs for financing energy efficiency, renewable energy, and zero-emission transportation (and associated infrastructure), capital investments, projects, and programs, which may include loan programs and performance contracting programs, for leveraging of additional public and private sector funds, and programs that allow rebates, grants, or other incentives for the purchase and installation of energy efficiency, renewable energy, and zero-emission transportation (and associated infrastructure) measures.",The first funding opportunity is expected for release in the Fall of 2022.
Clean Energy and Power,Energy Improvement in Rural and Remote Areas,Department of Energy,Office of Clean Energy Demonstrations,"$1,000,000,000",,Available until expended,Cooperative Agreement,Yes,"Industry Partners, Utilities, National Laboratories, Universities, State and Local Governments, Community Based Organizations, Tribal, and Environmental Groups.","To provide financial assistance to increase environmental protection from the impacts of energy use and improve resilience, reliability, safety, and availability of energy in rural or remote areas of the United States.","(A) Overall cost-effectiveness of energy generation, transmission, or distribution systems; (B) siting or upgrading transmission and distribution lines; (C) reducing greenhouse gas emissions from energy generation by rural or remote areas; (D) providing or modernizing electric generation facilities; (E) developing microgrids; and (F) increasing energy efficiency.",Applications for funding are expected to be open in the Fall of 2022.
Clean Energy and Power,Energy Storage Demonstration Pilot Grant Program,Department of Energy,Office of Clean Energy Demonstrations,"$355,000,000",,Available until expended,Grant or Cooperative Agreement,Yes,"Technology Developers, Industry, State and Local Governments, Tribal Organizations, Community Based Organizations, National Laboratories, Universities, and Utilities.",To enter into agreements to carry out 3 energy storage system demonstration projects.,"(i) To improve the security of critical infrastructure and emergency response systems.(ii) To improve the reliability of transmission and distribution systems, particularly in rural areas, including high-energy cost rural areas.(iii) To optimize transmission or distribution system operation and power quality to defer or avoid costs of replacing or upgrading electric grid infrastructure, including transformers and substations.(iv) To supply energy at peak periods of demand on the electric grid or during periods of significant variation of electric grid supply.(v) To reduce peak loads of homes and businesses.(vi) To improve and advance power conversion systems.(vii) To provide ancillary services for grid stability and management.(viii) To integrate renewable energy resource production.(ix) To increase the feasibility of microgrids (grid-connected or islanded mode).(x) To enable the use of stored energy in forms other than electricity to support the natural gas system and other industrial processes.(xi) To integrate fast charging of electric vehicles.(xii) To improve energy efficiency.","Estimated application opening date, 3rd quarter 2022."
Clean Energy and Power,Long-Duration Energy Storage Demonstration Initiative and Joint Program,Department of Energy,Office of Clean Energy Demonstrations,"$150,000,000",,Available until expended,Cooperative Agreement or Other (TBD),Yes,"Tec Technology Developers, Industry, State and Local Governments, Tribal Organizations, Community Based Organizations, National Laboratories, Universities, and Utilities.",To establish a demonstration initiative composed of demonstration projects focused on the development of long-duration energy storage technologies.,"Projects that --(i) demonstrate promising long-duration energy storage technologies at different scales; and(ii) help new, innovative long-duration energy storage technologies become commercially viable.","Estimated application opening date, 3rd quarter 2022."
Clean Energy and Power,Advanced Solar Energy Manufacturing Initiative,Department of Energy,Energy Efficiency and Renewable Energy,"$20,000,000",,Available until expended,Cooperative Agreement,Yes,"(A) An institution of higher education,(B) a National Laboratory;(C) a Federal research agency;(D) a State research agency;(E) a research agency associated with a territory or freely associated state;(F) a�Tribal energy development organization;(G) an�Indian Tribe;(H) a�Tribal organization;(I) a�Native Hawaiian community-based organization;(J) a nonprofit research organization;(K) an industrial entity;(L) any other entity, as determined by the�Secretary; and(M) a consortium of 2 or more entities described in subparagraphs (A) through (L).","To award financial assistance to eligible entities for research, development, demonstration, and commercialization projects to advance new solar energy manufacturing technologies and techniques.","Solar energy manufacturing projects that�(i) increase efficiency and cost effectiveness in�(I) the manufacturing process; and(II) the use of resources, such as energy, water, and critical materials;(ii) support domestic supply chains for materials and components;(iii) identify and incorporate nonhazardous alternative materials for components and devices;","Estimated application opening date, 2nd quarter 2023"
Clean Energy and Power,Preventing Outages and Enhancing the Resilience of the Electric Grid Grants,Department of Energy,Electricity,"$5,000,000,000",,Available until expended,Grant,Yes,"Electric Grid Operators, Electricity Storage Operators, Electricity Generators, Transmission Owners and Operators, Distribution Providers, Fuel Suppliers, States, Tribes","To make grants to eligible entities, States, and Tribes to prevent outages and enhance the resilience of the electric grid.",To carry out activities that are supplemental to existing hardening efforts and reduce the risk of power lines causing a wildfire; or reduce the likelihood and consequences of disruptive events.,"Estimated application opening date, 4th quarter 2022"
Clean Energy and Power,Program Upgrading Our Electric Grid and Ensuring Reliability and Resiliency,Department of Energy,Office of Clean Energy Demonstrations,"$5,000,000,000",,Available until expended,Cooperative Agreement or Grants,Yes,"State, combination of 2 or more States; Indian Tribes; units of local government, and/or public utility commissions.","To provide federal financial assistance to demonstrate innovative approaches to transmission, storage, and distribution infrastructure to harden and enhance resilience and reliability; and to demonstrate new approaches to enhance regional grid resilience.","To coordinate and collaborate with electric sector owners and operators�(A) to demonstrate innovative approaches to transmission, storage, and distribution infrastructure to harden and enhance resilience and reliability; and (B) to demonstrate new approaches to enhance regional grid resilience, implemented through States by public and rural electric cooperative entities on a cost-shared basis.","Estimated application opening date, 4th quarter 2022"
Clean Energy and Power,Pumped Storage Hydropower Wind and Solar Integration and System Reliability Initiative,Department of Energy,Energy Efficiency and Renewable Energy,"$10,000,000",,Available until expended,Cooperative Agreement,Yes,"Electric utilities, State Energy Offices, Tribes, Institutes of Higher Education, or consortium thereof","To provide financial assistance to eligible entities to carry out project design, transmission studies, power market assessments, and permitting for a pumped storage hydropower project to facilitate the long-duration storage of intermittent renewable electricity.","To be eligible for financial assistance, a project shall�(i) be designed to provide not less than 1,000 megawatts of storage capacity;(ii) be able to provide energy and capacity for use in more than 1 organized electricity market;(iii) be able to store electricity generated by intermittent renewable electricity projects located on Tribal land; and (iv) have received a preliminary permit from the Federal Energy Regulatory Commission.","Estimated application opening date, TBD"
Clean Energy and Power,Regional Clean Hydrogen Hubs,Department of Energy,Office of Clean Energy Demonstrations,"$8,000,000,000",,Available until expended,Grants,Yes,"Technology Developers, Industry, Utilities, Universities, National Laboratories, Engineering and Construction firms, State and Local Governments, Tribal, Environmental Groups, and Community Based Organizations.","To support the development of at least 4 regional clean hydrogen hubs to improve clean hydrogen production, processing, delivery, storage, and end use.","Projects that demonstrate the production, processing, delivery, storage, and end-use of, clean hydrogen through regional clean hydrogen hubs, which are networks of clean hydrogen producers, potential clean hydrogen consumers, and connective infrastructure located in close proximity.",Applications for funding will open in the Summer of 2022.
Clean Energy and Power,Solar Improvement Research & Development,Department of Energy,Energy Efficiency and Renewable Energy,"$40,000,000",,Available until expended,Cooperative Agreement,No,"(A) An Institution of Higher Education, (B) A National Laboratory;(C) A Federal Research Agency;(D) A State Research Agency;(E) A Research Agency Associated with A Territory or Freely Associated State;(F) a�Tribal energy development organization;(G) an�Indian Tribe;(H) a�Tribal organization;(I) a�Native Hawaiian community-based organization;(J) a nonprofit research organization;(K) an industrial entity;(L) any other entity, as determined by the�Secretary; and(M) a consortium of 2 or more entities described in subparagraphs (A) through (L).","To fund research, development, demonstration, and commercialization activities to improve solar energy technologies.","Research, development, demonstration, and commercialization activities, including�(i)awarding grants and awards, on a competitive, merit-reviewed basis;(ii)performing precompetitive research and development;(iii)establishing or maintaining demonstration facilities and projects, including through stewardship of existing facilities;(iv)providing technical assistance;(v)entering into contracts and cooperative agreements;(vi)providing small business vouchers;(vii)establishing prize competitions;(viii)conducting education and outreach activities;(ix)conducting workforce development activities; and(x)conducting analyses, studies, and reports.","Estimated application opening date, 3rd quarter 2022."
Clean Energy and Power,Solar Recycling Research & Development,Department of Energy,Energy Efficiency and Renewable Energy,"$20,000,000",,Available until expended,Cooperative Agreement,Yes,"(A) An institution of higher education,(B) a National Laboratory;(C) a Federal research agency;(D) a State research agency;(E) a research agency associated with a territory or freely associated state;(F) a�Tribal energy development organization;(G) an�Indian Tribe;(H) a�Tribal organization;(I) a�Native Hawaiian community-based organization;(J) a nonprofit research organization;(K) an industrial entity;(L) any other entity, as determined by the�Secretary; and(M) a consortium of 2 or more entities described in subparagraphs (A) through (L).","To award financial assistance to eligible entities for research, development, demonstration, and commercialization projects to create innovative and practical approaches to increase the reuse and recycling of solar energy technologies.","Eligible uses include -- (i) increasing the efficiency and cost effectiveness of the recovery of raw materials from solar energy technology components and systems, including enabling technologies such as inverters;(ii) minimizing potential environmental impacts from the recovery and disposal processes;(iii) advancing technologies and processes for the disassembly and recycling of solar energy devices;(iv) developing alternative materials, designs, manufacturing processes, and other aspects of solar energy technologies and the disassembly and resource recovery process that enable efficient, cost effective, and environmentally responsible disassembly of, and resource recovery from, solar energy technologies; and(v) strategies to increase consumer acceptance of, and participation in, the recycling of photovoltaic devices.","Estimated application opening date, 3rd quarter 2022."
Clean Energy and Power,Watershed Rehabilitation Program,Department of Agriculture,National Resources Conservation Service,"$118,000,000",,Available until expended,Technical and Financial Assistance,No,"Local Sponsor or Legal Subdivision of State or Tribal Government. Eligible Sponsors Include Cities, Counties, Towns, Conservation Districts, Or Any Federally-Recognized Native American Tribe or Tribal Organization.","Provides planning, design and construction for Department of Agriculture assisted dams to extend their service life and meet current safety requirements.","Rehabilitate high hazard watershed dams previously installed under the following four authorities: PL 83-566, PL 78-534, RC&D, Pilot Program.","Estimated application opening date, 1st quarter 2022"
Clean Energy and Power,Weatherization Assistance Program,Department of Energy,Energy Efficiency and Renewable Energy,"$3,500,000,000",,Beginning FY 2022 (to remain until expended),Formula Grant,No,"States, Tribes","To increase the energy efficiency of dwellings owned or occupied by low-income persons , reduce their total residential energy expenditures, and improve their health and safety, especially low-income persons who are particularly vulnerable such as the elderly, the handicapped, and children.","Improvement of heating and cooling of dwellings by the installation of weatherization materials such as attic insulation, caulking, weather-stripping, furnace efficiency modifications, certain mechanical measures to heating and cooling systems, and replacement furnaces, boilers, and air-conditioners. Grantees may receive formula-based allocations and can perform weatherization retrofits with an average cost of up to $8,009 per dwelling unit in FY 2022. Up to 10 percent of each grant may be spent by a Grantee and its subgrantees for administrative expenses ( in the Formula Grants a Grantee may not use more than 5 percent of the total State grant for such purposes).","Estimated first round of funds released date, 1st quarter 2022"
Clean Energy and Power,Wind Energy Tech Recycling Research & Development,Department of Energy,Energy Efficiency and Renewable Energy,"$40,000,000",,Available until expended,Cooperative Agreement,Yes,"(A) An institution of higher education, (B) a National Laboratory;(C) a Federal research agency;(D) a State research agency;(E) a research agency associated with a territory or freely associated state;(F) a�Tribal energy development organization;(G) an�Indian Tribe;(H) a�Tribal organization;(I) a�Native Hawaiian community-based organization;(J) a nonprofit research organization;(K) an industrial entity;(L) any other entity, as determined by the�Secretary; and(M) a consortium of 2 or more entities described in subparagraphs (A) through (L).","To award financial assistance to eligible entities for research, development, and demonstration, and commercialization projects to create innovative and practical approaches to increase the reuse and recycling of wind energy technologies.","(i) Increasing the efficiency and cost effectiveness of the recovery of raw materials from wind energy technology components and systems, including enabling technologies such as inverters;(ii) minimizing potential environmental impacts from the recovery and disposal processes;(iii) advancing technologies and processes for the disassembly and recycling of wind energy devices;(iv) developing alternative materials, designs, manufacturing processes, and other aspects of wind energy technologies and the disassembly and resource recovery process that enable efficient, cost effective, and environmentally responsible disassembly of, and resource recovery from, wind energy technologies; and(v) strategies to increase consumer acceptance of, and participation in, the recycling of wind energy technologies.","Estimated application opening date, TBD"
Clean Energy and Power,Wind Energy Technology Program,Department of Energy,Energy Efficiency and Renewable Energy,"$60,000,000",,Available until expended,Cooperative Agreement,No,"(A) An Institution of Higher Education, (B) A National Laboratory;(C) A Federal Research Agency;(D) A State Research Agency;(E) A Research Agency Associated with A Territory or Freely Associated State;(F) a�Tribal energy development organization;(G) an�Indian Tribe;(H) a�Tribal organization;(I) a�Native Hawaiian community-based organization;(J) a nonprofit research organization;(K) an industrial entity;(L) any other entity, as determined by the�Secretary; and(M) a consortium of 2 or more entities described in subparagraphs (A) through (L).","To fund research, development, demonstration, and commercialization activities to improve wind energy technologies.","Research, development, demonstration, and commercialization activities to improve wind energy technologies, including�(i)awarding grants and awards, on a competitive, merit-reviewed basis;(ii)performing precompetitive research and development;(iii)establishing or maintaining demonstration facilities and projects, including through stewardship of existing facilities such as the National Wind Test Center;(iv)providing technical assistance;(v)entering into contracts and cooperative agreements;(vi)providing small business vouchers;(vii)establishing prize competitions;(viii)conducting education and outreach activities;(ix)conducting professional development activities; and(x)conducting analyses, studies, and reports.","Estimated application opening date, 3rd quarter 2022."
"Electric Vehicles, Buses and Ferries",Charging & Fueling Infrastructure Grants (Corridor Charging),Department of Transportation,Federal Highway Administration,"$1,250,000,000",,4 year,Competitive Grant,Yes,"State or political subdivision of a State, Metropolitan Planning Organizations, Local government, Special purpose district or public authority with a transportation function, Indian Tribe, Territory",Deploy electric vehicle (EV) charging and hydrogen/propane/natural gas fueling infrastructure along designated alternative fuel corridors and in communities.,"Acquisition and installation of publicly accessible EV charging or alternative fueling infrastructure, operating assistance (for the first 5 years after installation), acquisition and installation of traffic control devices",FHWA will publish a Notice of Funding Opportunity in 2022.
"Electric Vehicles, Buses and Ferries",Charging and Fueling Infrastructure Grants (Community Charging),Department of Transportation,Federal Highway Administration,"$1,250,000,000",,4 year,Competitive Grant,Yes,"State or political subdivision of a State, Metropolitan Planning Organization, Local government, Special purpose district or public authority with a transportation function, Indian Tribe, Territory","Program funds will be made available each fiscal year for Community Grants, to install EV charging and alternative fuel in locations on public roads, schools, parks, and in publicly accessible parking facilities. These grants will be prioritized for rural areas, low-and moderate-income neighborhoods, and communities with low ratios of private parking, or high ratios of multiunit dwellings.","Acquisition and installation of publicly accessible EV charging or alternative fueling infrastructure, operating assistance (for the first 5 years after installation), acquisition and installation of traffic control devices",FHWA will publish a Notice of Funding Opportunity in 2022.
"Electric Vehicles, Buses and Ferries",Clean School Bus Program,Environmental Protection Agency,State and Tribal Assistance Grants,"$5,000,000,000",,Available until expended,"Grant, Rebate and Contract",Yes,Local or State Governmental Entities; An Eligible Contractor; A Nonprofit School Transportation Association; Or an Indian Tribe,"State or local governments, eligible contractors, and nonprofit school transportation associations are authorized to receive grant funds. Fifty percent of the funds are authorized for zero-emission school buses, and 50 percent of the funds are authorized for alternative fuels and zero-emission school buses. Funds may be prioritized for rural or low-income communities and entities that have matching funds available. The EPA Administrator is authorized to provide funds to cover up to 100 percent of the costs for the replacement of the bus.","State or local governments, eligible contractors, and nonprofit school transportation associations are authorized to receive grant funds. Fifty percent of the funds are authorized for zero-emission school buses, and 50 percent of the funds are authorized for alternative fuels and zero-emission school buses. Funds may be prioritized for rural or low-income communities and entities that have matching funds available. The EPA Administrator is authorized to provide funds to cover up to 100 percent of the costs for the replacement of the bus.",Applications for funding will be made available here later this spring.
"Electric Vehicles, Buses and Ferries",Low or No Emission (Bus) Grants,Department of Transportation,Federal Transit Administration,"$5,624,550,890",,Year of Allocation + 3,Grant,No,"States, Counties, Cities / Townships, Special Districts, Tribal Governments (federally recognized)","Provides capital funding to replace, rehabilitate, purchase, or lease buses and bus related equipment and to rehabilitate, purchase, construct, or lease bus-related facilities. Provides capital funding for low or no emissions bus projects.",Capital,Notice of Funding Opportunity expected the first quarter of 2022
"Electric Vehicles, Buses and Ferries",Low or No Emission (Bus) Grants,Department of Transportation,Federal Transit Administration,"$5,624,550,890",,Year of Allocation + 3,Competitive Grant,No,"States, Counties, Cities / Townships, Special Districts, Tribal Governments (federally recognized)","Provides capital funding to replace, rehabilitate, purchase, or lease buses and bus related equipment and to rehabilitate, purchase, construct, or lease bus-related facilities. Provides capital funding for low or no emissions bus projects.",Capital,Notice of Funding Opportunity expected the first quarter of 2022
Environmental Remediation,Abandoned Mine Reclamation Fund,Department of the Interior,Office of Surface Mining Reclamation and Enforcement,"$11,293,000,000",,Funding available until expended. Available in Fiscal Year 2022 and distributed to states & tribes on an equal annual basis over 15 years.,Grant,No,States and Tribes,Funding to administer a program to provide grants to eligible States and Tribes to clean up abandoned coal mine sites and related problems.,"Cleaning up abandoned coal mine sites and related problems, as specified in the Bipartisan Infrastructure Law, that pose a threat to public health and safety, and restoring land and water resources degraded by the effects of past coal mining, and addressing emergency projects. Those sites and related problems must be entered into the Office of Surface Mining and Reclamation�s abandoned mine land inventory system and be associated with a coal mine that was abandoned prior to August 3, 1977.Unlike traditional Abandoned Mine Land funding that has been distributed in the past, and will continue to be distributed annually through at least Fiscal Year 2035, funding under the Bipartisan Infrastructure Law may be used to design, build, operate, maintain, and rehabilitate acid mine drainage facilities that are not in conjunction with a Priority 1 or Priority 2 site. However, States and Tribes may not place a portion of their Bipartisan Infrastructure Law funding into acid mine drainage set-aside accounts.","February 2022 Estimated publication date for amount of funding available to States and Tribes, February 2022. Estimated application opening date, 3rd quarter 2022."
Environmental Remediation,Brownfields Categorical Grants,Environmental Protection Agency,State and Tribal Assistance Grants,"$300,000,000",,Available until expended,Cooperative Agreement,No,"States, Tribal Governments (Federally Recognized)","Unlike many Environmental Protection Agency cleanup programs States and Tribal Nations are responsible for developing brownfields cleanup standards and policy and conducting or overseeing the assessment and cleanup of brownfield sites within their jurisdictions. This funding is intended for states and tribes that have the required management and administrative capacity within their government to administer a federal grant. The primary goal of this funding is to ensure that state and Tribal response programs include, or are taking reasonable steps to include, certain elements of an environmental response program and that the program establishes and maintains a public record of sites addressed.","Eligible activities include, but are not limited to, the following: Developing legislation, regulations, procedures, ordinances, guidance, etc. that establish or enhance the administrative and legal structure of a response program; Establishing and maintaining the required public record described in Section V of this guidance;Operation, maintenance and long-term monitoring of institutional controls and engineering controls;Conducting limited site-specific activities, such as assessment or cleanup, provided such activities establish and/or enhance the response program;Purchasing environmental insurance; and Capitalizing revolving loan funds for cleanup.program.",Estimated 3rd quarter 2022.
Environmental Remediation,Brownfields Projects,Environmental Protection Agency,State and Tribal Assistance Grants,"$1,200,000,000",,Available until expended,Cooperative Agreement,No,"States, Counties, Cities/Townships, Tribal Governments (Federally Recognized), Public Housing Authorities, Indian Housing Authorities, Nonprofits With 501(C)(3) Status","Environmental Protection Agency�s Brownfields Program provides funds to empower states, communities, tribes, and nonprofit organizations to prevent, inventory, assess, clean up, and reuse brownfield sites. Environmental Protection Agency provides technical and financial assistance for brownfields activities that protect human health and the environment, encourage sustainable reuse, promote partnerships, strengthen local economies, and create jobs. By providing funds and technical assistance to assess, cleanup, and plan for site reuse, Environmental Protection Agency enables communities to overcome the environmental, legal, and fiscal challenges associated with brownfields properties. Environmental Protection Agency�s investments in communities across the country help local leaders eliminate uncertainties, clean up contaminated properties, and transform brownfield sites into community assets.","Eligible activities include, but are not limited to, conducting community engagement and planning at one or more brownfield sites, site assessments, site cleanup planning and direct site cleanup.",Additional competitive funding opportunities will be announced this Fall.
Environmental Remediation,Clean Energy Demonstration Program on Current and Former Mine Land,Department of Energy,Office of Clean Energy Demonstrations,"$500,000,000",,Available until expended,Cooperative Agreement,Yes,"Industry Partner, Project Developers",To establish a program to demonstrate the technical and economic viability of carrying out clean energy projects on current and former mine land.,"(A) Solar. (B) Micro-grids. (C) Geothermal. (D) Direct air capture. (E) Fossil-fueled electricity generation with carbon capture, utilization, and sequestration. (F) Energy storage, including pumped storage hydropower and compressed air storage. (G) Advanced nuclear technologies.","Estimated application opening date, 2023."
Environmental Remediation,"Orphaned Well Site Plugging, Remediation, And Restoration",Department of the Interior,Department-Wide Programs,"$4,677,000,000",,"Through September 30, 2030, for individual grant programs, though overall appropriation is available until expended.","Direct Federal Spending, Grants to States and Tribes, technical assistance Funding to Interstate Oil and Gas Compact Commission",Yes,"Federal, State, Tribal","Funding to administer a program for plugging wells on Federal land, and for issuing grants to States and Tribes on State, private, and Tribal land. Grants to States are available through three separate programs:Initial Grants: Either $5 million or $25 million to each qualifying State that applies before May 14, 2022. Funding unobligated after 1 year must be returned.Formula Grants: $2 billion in total funding available to States that submitted a Notice of Intent to the Department of the Interior by December 30, 2021. The amount each State is eligible for under this program is determined by formula. Funding unobligated after 5 years must be returned.Performance Grants: $1.5 billion in discretionary grants to States that increase their own spending on well plugging, remediation, and reclamation, or improve the regulation of oil and gas wells within the State.","Inventory, site characterization, down-hole well plugging, surface remediation, removal of surface equipment, restoration of native species habitat impacted by orphaned wells and associated infrastructure, measurement and tracking of air and water pollution due to orphaned wells, identification and remediation of disproportionate health and environmental impacts of orphaned wells on communities of color, low-income communities, and Tribal and indigenous communities.","Estimated date for publication of state application guidance, March 2022."
Environmental Remediation,Superfund Remedial,Environmental Protection Agency,Hazardous Substance Superfund,"$3,500,000,000",,Available until expended,"Contract, Cooperative Agreement, Interagency Agreements",No,"Industry Partners, Federal, States, Local Governments, Special Districts, Tribal Governments","Environmental Protection Agency�s Superfund program is responsible for cleaning up some of the nation�s most contaminated land. To protect public health and the environment the Superfund program focuses on making a visible and lasting difference in communities, ensuring that people can live and work in healthy, vibrant places.","Environmental Protection Agency enters contracts and interagency agreements to conduct work at Superfund sites. Environmental Protection Agency can also award Superfund cooperative agreements with states, tribes, or local governments to lead or support work in the Superfund program.",
Other,Asset Concessions,Department of Transportation,Office of the Secretary,"$100,000,000",,Available until expended,Grant,Yes,"States, Counties, Cities / Townships, Special Districts, Tribal Governments (federally recognized), Tribal Governments (other than federally recognized), Independent School Districts, Public Higher-Ed Institutions, Private Higher-Ed Institutions, Public Housing Authorities, Indian Housing Authorities, Nonprofits with 501(c)(3) status, Nonprofits - without 501(c)(3) status, Small Businesses, Businesses (other than small businesses), and / or Individuals",TBD - New Program,"An eligible entity may use amounts made available from a grant under this section for technical assistance to build the organizational capacity of the eligible entity to develop, review, or enter into an asset concession.",
Other,Delta Regional Authority,Delta Regional Authority,Delta Regional Authority,"$150,000,000",,Available until expended,Grants,No,"States, Counties, Cities / Townships, Special Districts, Tribal Governments (federally recognized), Public Higher-Ed Institutions, Nonprofits with 501(c)(3) status, Nonprofits - without 501(c)(3) status","The Delta Regional Authority (DRA) is engaged in planning for the allocation of Bipartisan Infrastructure Law appropriations. The Authority�s existing programs focus on public infrastructure improvements, workforce development, and business development. The DRA states are Alabama, Arkansas, Illinois, Kentucky, Louisiana, Mississippi, Missouri, and Tennessee.","Eligible uses will be determined at a future date but may include planning, infrastructure activities, telehealth, water, sewer, other public utilities, and broadband.",
Other,Denali Commission Funding,Denali Commission,Denali Commission,"$67,750,000",,Available until expended,Grant,No,"States, Counties, Cities / Townships, Special Districts, Tribal Governments (federally recognized), Public Higher-Ed Institutions, Public Housing Authorities, Indian Housing Authorities, Nonprofits with 501(c)(3) status, Nonprofits - without 501(c)(3) status",TBD,"TBD but may include job training and other economic development services in rural communities, provide power generation, transmission facilities, modern communication systems, water and sewer systems and other infrastructure needs.","Notice of Funding Opportunity released March 22nd, 2022."
Other,Denali Commission: Village Infrastructure Protection,Denali Commission,Denali Commission,"$5,000,000",,No year,Grant,No,"States, Counties, Cities / Townships, Special Districts, Tribal Governments (federally recognized), Public Higher-Ed Institutions, Public Housing Authorities, Indian Housing Authorities, Nonprofits with 501(c)(3) status, Nonprofits - without 501(c)(3) status","Program to assist rural Alaskan communities that are threatened by erosion, flooding and permafrost degradation.","Construction, planning and workforce development.",
Other,Denali Commission: Workforce Development,Denali Commission,Denali Commission,"$2,000,000",,Available until expended,Grant,No,"States, Counties, Cities / Townships, Special Districts, Tribal Governments (federally recognized), Public Higher-Ed Institutions, Public Housing Authorities, Indian Housing Authorities, Nonprofits with 501(c)(3) status, Nonprofits - without 501(c)(3) status",Program aimed at enhancing relevant skills of rural Alaskan community members to meet current demands.,Workforce development,"Notice of Funding Opportunity released March 22nd, 2022."
Other,Fish Passage,Department of Commerce,National Oceanic and Atmospheric Administration,"$400,000,000",,2 years for each annual tranche,Grant,No,"Non-Profit 501(C) Organizations, State and Territorial Government Agencies, Local Governments, Municipal Governments, Tribal Governments and Organizations, Educational Institutions, Or Commercial (For-Profit) Organizations","Restoring fish passage by removing in-stream barriers and providing technical assistance pursuant to section 117 of the Magnuson-Stevens Fishery Conservation and Management Reauthorization Act of 2006 (16 U.S.C. 1891a),","On the ground fish passage restoration projects, engineering and design, future project development phases, and building the capacity of new and existing restoration partners to design projects and manage multi-faceted construction efforts","Estimated application opening date, 2nd quarter 2022."
Other,Growing State Apportionments,Department of Transportation,Federal Transit Administration,"$2,055,665,467",,Available until expended,Grant,No,"States, Counties, Cities / Townships, Special Districts, Tribal Governments (federally recognized)",An additional formula funding component that is then added to either the 5307 or 5311 formula funding.,"Planning, Capital, Operating Assistance",
Other,Growing States and High-Density States Formula,Department of Transportation,Federal Transit Administration,"$1,822,948,622",,Available until expended,Grant,No,"States, Counties, Cities / Townships, Special Districts, Tribal Governments (federally recognized)",An additional formula funding component that is then added to either the 5307 or 5311 formula funding.,"Planning, Capital, Operating Assistance",
Other,Low Income Home Energy Assistance Program,Department of Health and Human Services,Administration for Children and Families,"$500,000,000",,2022 - 2026,Grant,No,"States, Territories, Tribal Governments (federally recognized), Tribal Governments (other than federally recognized), Indian Housing Authorities, and Consortia Authorized to Administer the Program by Eligible Tribal Entities","The Low-Income Home Energy Assistance Program assists eligible low-income households with their heating and cooling energy costs, bill payment assistance, energy crisis assistance, weatherization and energy-related home repairs","The Low-Income Home Energy Assistance Program provides federally funded assistance in managing costs associated with home energy bills, energy crises, weatherization and energy-related minor home repairs.","First round of funds released this January, 2022."
Other,Marine Debris,Department of Commerce,National Oceanic and Atmospheric Administration,"$150,000,000",,2 year,Various,No,"Non-Profit 501(C) Organizations, State and Territorial Government Agencies, Local Governments, Municipal Governments, Tribal Governments and Organizations, Educational Institutions, Or Commercial (For-Profit) Organizations",The mission of the National Oceanic and Atmospheric Administration Marine Debris Program is to investigate and prevent the adverse impacts of marine debris. The National Oceanic and Atmospheric Administration Marine Debris Program envisions the global ocean and its coasts free from the impacts of marine debris.,"Removal and cleanup of significant legacy debris such as abandoned and derelict vessels and derelict fishing gear, as well other priority debris types, that pose a threat to National Oceanic and Atmospheric Administration trust resources, the economy or navigation safety. Prevention of the re-accumulation of marine debris, as well as preventing common consumer debris from entering the marine environment. Assessment of the scope, scale, and distribution of marine debris in the environment through marine debris monitoring and detection investments.","Estimated application opening date, 2nd quarter 2022."
Other,Marine Debris,Department of Commerce,National Oceanic and Atmospheric Administration,"$50,000,000",,2 years for each annual tranche,Grant,No,"States, Counties, Cities / Townships, Special Districts, Tribal Governments (Federally Recognized), Tribal Governments (Other Than Federally Recognized), Public Higher-Ed Institutions, Private Higher-Ed Institutions, Nonprofits With 501(C)(3) Status, Nonprofits - Without 501(C)(3) Status, Small Businesses, Businesses (Other Than Small Businesses), And / Or Individuals",The mission of the National Oceanic and Atmospheric Administration Marine Debris Program is to investigate and prevent the adverse impacts of marine debris. The National Oceanic and Atmospheric Administration Marine Debris Program envisions the global ocean and its coasts free from the impacts of marine debris.,"Research (physical and social science, engineering, and legal) and increasing capacity and expertise through education to eliminate barriers to marine debris prevention and removal.","Estimated application opening date, 2nd quarter 2022."
Other,Northern Border Regional Commission,Northern Border Regional Commission,Northern Border Regional Commission,"$150,000,000",,Available until expended,Grant,No,"States, Counties, Cities / Townships, Special Districts, Tribal Governments (federally recognized), Tribal Governments (other than federally recognized), Independent School Districts, Public Higher-Ed Institutions, Private Higher-Ed Institutions, Public Housing Authorities, Indian Housing Authorities, Nonprofits with 501(c)(3) status, Nonprofits - without 501(c)(3) status","The Northern Border Regional Commission catalyzes regional, collaborative, and transformative community economic development approaches that alleviate economic distress and position the region for economic growth.","Still pending final decisions, but may include: Transportation Infrastructure; Basic Public Infrastructure; Telecommunications Infrastructure; Renewable and Alternative Energy Sources",Estimated funds will be released in November 2022.
Other,Pacific Coastal Salmon Recovery Fund,Department of Commerce,National Oceanic and Atmospheric Administration,"$172,000,000",,2 year,Grant,No,States and Tribes,"The Pacific Coastal Salmon Recovery Fund was established by Congress in 2000 to reverse the declines of Pacific salmon and steelhead. The program supports conservation efforts in California, Oregon, Washington, Idaho, and Alaska. It is essential to preventing the extinction of the 28 listed salmon and steelhead species on the West Coast",Actions to support the recovery and protection of declining salmon stocks.,"Estimated application opening date, 2nd quarter 2022."
Other,"Reduce, Reuse, Recycling Education and Outreach Grants",Environmental Protection Agency,State and Tribal Assistance Grants,"$75,000,000",,Available until expended,Cooperative Agreements and/or Grants,Yes,"States, a Unit of Local Government, Tribal Governments (federally recognized), A Native Hawaiian Organization, The Department of Hawaiian Homelands, The Office of Hawaiian Affairs, A Non-Profit Organization, Or A Public-Private Partnership","Communities across the country are burdened by pollution impacts from inefficient waste management systems. This historic investment will transform public education and outreach regarding how to reduce, reuse, and recycle right.","To award grants focused on improving material recycling, recovery, management, and reduction. To improve the effectiveness of residential and community recycling programs through public education and outreach. Funded projects should inform the public about residential or community recycling programs, provide information about the recycled materials that are accepted, increase collection rates and decrease contamination.",Stakeholder outreach and engagement to inform development of grant program to begin: (Estimated): 2nd quarter 2022 Funding Opportunity Availability: (Estimated) 4th quarter 2022
Other,Regional Ocean Partnerships,Department of Commerce,National Oceanic and Atmospheric Administration,"$56,000,000",,2 year,"Contract, Cooperative Agreement",No,"States, Territories, Tribal Governments","Regional Ocean Partnerships are regional organizations voluntarily convened by governors working in collaboration with other governments (including Tribal, federal, and local) and stakeholders to address ocean and coastal issues of common concern in that region. Regional Ocean Partnerships, along with equivalent organizations such as Integrated Ocean Observing System Regional Associations, also serve to enhance associated sharing and integration of Federal and non-federal data.",Implementation of Regional Ocean Partnership priority actions identified in Regional Ocean Partnership work plans; regional capacity for sharing and integration of Federal and non-federal data,"Estimated application opening date, 2nd quarter 2022."
Other,Solid Waste Infrastructure for Recycling Infrastructure Grants,Environmental Protection Agency,State and Tribal Assistance Grants,"$275,000,000",,Available until expended,Cooperative Agreements and/or Grants,Yes,"States (including the District of Columbia, a territory or possession of the United States, or any political subdivision of a State, Tribe, or territory), Tribes, InterTribal Consortia consistent with the requirements in 40 CFR 35.504(A), Former Indian Reservations in Oklahoma (As Determined by The Secretary of The Interior), and Alaskan Native Villages as defined in Public Law 92203.",Communities across the country are burdened by pollution impacts from inefficient waste management systems. This historic investment will transform recycling and solid waste management across the country while creating jobs.,Provide grants to implement a strategy to improve post-consumer materials management and infrastructure; support improvements to local post-consumer materials management and recycling programs; and assist local waste management authorities in making improvements to local waste management systems.,Stakeholder outreach and engagement to inform development of grant program to begin: (Estimated): 2nd quarter 2022 Funding Opportunity Availability: (Estimated) 4th quarter 2022
Other,Technical Assistance and Workforce Development Grants,Department of Transportation,Federal Transit Administration,"$27,545,852",,Available until expended,"Grant, Cooperative Agreement, Contract",No,"National nonprofit organizations that have the appropriate demonstrated capacity to provide public transportation-related technical assistance; providers of public transportation; standards development organizations; workforce development entities, Tribal organizations.","The goals and objectives for Technical Assistance and Workforce Development projects vary according to the type of project. Eligible activities include: Technical assistance and Standards to more effectively and efficiently provide public transportation service; administer funds received under 49 U.S.C. Chapter 53 in compliance with federal law; and improve public transportation; address Human Resources needs, provide Training; support Innovative Public Transportation Frontline Workforce Development; and operate a National Transit Institute.Technical Assistance can support compliance with the Americans with Disabilities Act; compliance with human services transportation coordination requirements; meeting the transportation needs of elderly individuals; increasing transit ridership with Metropolitan Planning Organizations; addressing transportation equity; facilitating best practices to promote bus driver safety; meeting the requirements 5323(j) (Buy America) and 5323(m) (Pre and Post-Award Audits); assisting with the development and deployment of low or no emission vehicles; and any other technical assistance activities the Secretary of Transportation determines is necessary to advance the interests of public transportation. Standards programs and projects include developing voluntary and consensus-based standards and best practices by the public transportation industry, including standards and best practices for safety, fare collection, Intelligent Transportation Systems, accessibility, procurement, security, asset management to maintain a state of good repair, operations, maintenance, vehicle propulsion, communications, and vehicle electronics. Human Resources and Training programs may include: 1) Employment training programs; (2) Outreach to specific under-represented populations in the workforce; (3) Research on public transportation personnel and training needs; (4) Training and assistance for veteran and minority business opportunities; and (5) Consensus-based national training standards and certifications in partnership with industry stakeholders.The Innovative Public Transportation Frontline Workforce Development Program focuses on: (1) developing apprenticeships, on-the job training, and instructional training for public transportation maintenance and operations occupations; (2) building local, regional, and statewide public transportation training partnerships with local public transportation operators, labor union organizations, workforce development boards, and State workforce agencies to identify and address workforce skill gaps; (3) improving safety, security, and emergency preparedness in local public transportation systems through improved safety culture and workforce communication with first responders and the riding public; and (4) addressing current or projected workforce shortages by developing partnerships with high schools, community colleges, and other community organizations. The National Transit Institute will develop and conduct training and educational programs for Federal, State, and local transportation employees, United States citizens and foreign nationals engaged or to be engaged in public transportation work.","Technical assistance, standards, workforce development, and training activities.",
Other,Temporary Water Crossing Structures,Department of Agriculture,Forest Service,"$50,000,000",,,Grant,Yes,"States, Tribes",Under development,Under development,"Estimated application opening date, 1st quarter 2023."
Passenger and Freight Rail,Consolidated Rail Infrastructure and Safety Improvement Grants,Department of Transportation,Federal Railroad Administration,"$5,000,000,000",,Available until expended,Competitive Grant,No,"-States, including the District of Columbia.-A group of States.-An Interstate Compact.-A public agency or publicly chartered authority established by 1 or more States.-A political subdivision of a State.-Amtrak and other rail carriers providing intercity rail passenger transportation.-Class II/III Railroads and associations that represent Class II/III Railroads.-Rail carriers & equipment manufacturers, in partnership with at least 1 of the first 5 entities above.-Federally recognized Indian Tribes.-Transportation Research Board.-University Transportation Centers engaged in rail-related research.-Non-profit labor organizations representing rail employees.","To fund projects that improve the safety, efficiency, and reliability of intercity passenger and freight rail.","Eligible projects include a wide range of freight and passenger rail capital, safety technology deployment, planning, environmental analyses, research, workforce development, and training projects. New eligibilities include: (1) measures to prevent trespassing on railroad property; (2) preparation of emergency plans for communities through which hazardous materials are transported by rail; (3) research, development, and testing to advance innovative rail projects; and (4) rehabilitating, remanufacturing, procuring, or overhauling locomotives to reduce emissions.","Finalize selections from Fiscal Year 21 Notice of Funding Opportunity, targeting spring 2022 for announcement. Estimated released date of Fiscal Year 22 funds is TBD"
Passenger and Freight Rail,Federal-State Partnership for Intercity Passenger Rail Grants,Department of Transportation,Federal Railroad Administration,"$36,000,000,000",,Available until expended,Competitive Grant,No but has been substantially revised.,"-States, including the District of Columbia.-A group of States.-An Interstate Compact.-A public agency or publicly chartered authority established by 1 or more States.-A political subdivision of a State.-Amtrak, acting on its own behalf or under a cooperative agreement with 1 or more States.-Federally recognized Indian Tribe.-Any combination of the entities above.","To fund capital projects that reduce the state of good repair backlog, improve performance, or expand or establish new intercity passenger rail service, including privately operated intercity passenger rail service if an eligible applicant is involved.","(1) Projects to replace, rehabilitate, or repair infrastructure, equipment, or a facility used for providing intercity passenger rail service to bring such assets into a state of good repair; (2) projects to improve intercity passenger rail service performance, including reduced trip times, increased train frequencies, higher operating speeds, improved reliability, expanded capacity, reduced congestion, electrification, and other improvements, as determined by the Secretary; (3) projects to expand or establish new intercity passenger rail service; and (4) a group of related projects described previously. The planning, environmental review, and final design of an eligible project or group of projects is also eligible. Preference to eligible projects: (1) for which Amtrak is not the sole applicant; (2) the improve the financial performance, reliability, service frequency, or address the state of good repair of an Amtrak route; and (3) that are identified in, and consistent with, a corridor inventory prepared under the Corridor Identification and Development Program pursuant to section 25101.","Evaluate applications and make selections under Fiscal Year 21 Notice of Funding Opportunity, targeting summer for announcements. Conduct stakeholder outreach regarding expanding Fed-State program, as well as development of Northeast Corridor inventory, which must be established by November 14, 2022. Estimated released date of Fiscal Year 22 funds is TBD"
Passenger and Freight Rail,Railroad Crossing Elimination Program,Department of Transportation,Federal Railroad Administration,"$3,000,000,000",,Available until expended,Competitive Grant,Yes,"-States, including the District of Columbia, Puerto Rico, and other United States territories and possessions.-A political subdivision of a State.-Federally recognized Indian Tribes.-A unit of local government or a group of local governments.-A public port authority. -A metropolitan planning organization.-A group of the entities described above.",To provide funds for the mitigation or elimination of hazards at railway-highway crossings.,"(1) Grade separation or closure, including through the use of a bridge, embankment, tunnel, or combination thereof; (2) track relocation; (3) improvement or installation of protective devices, signals, signs, or other measures to improve safety related to a separation, closure, or track relocation project; (4) other means to improve the safety if related to the mobility of people and goods at highway-rail grade crossings (including technological solutions); (5) the planning, environmental review, and design of an eligible project type.",Estimated released date of Fiscal Year 22 funds is TBD
Passenger and Freight Rail,Restoration & Enhancement Grant Program,Department of Transportation,Federal Railroad Administration,"$250,000,000",,Available until expended,Competitive Grant,No,"-States, including the District of Columbia.-An entity implementing an interstate compact. A public agency/publicly chartered authority established by 1 or more States. -A political subdivision of a State.-Federally recognized Indian Tribes.-Amtrak & Other IPR Carriers.-Rail Carriers in partnership with at least 1 of the entities described above.","To provide operating assistance to initiate, restore, or enhance intercity passenger rail service.

Key Changes:
New priority to applications for routes selected under the Corridor Identification and Development Program and operated by Amtrak. Grants may provide operating assistance for up to six years, and may not exceed: 90 percent of the projected net operating costs for the first year of service; 80 percent of the projected net operating costs for the second year of service; 70 percent of the projected net operating costs for the third year of service; 60 percent of the projected net operating costs for the fourth year of service; 50 percent of the projected net operating costs for the fifth year of service; and 30 percent of the projected net operating costs for the sixth year of service.","(1) Establishing new services; (2) additional frequencies; (3) service extensions; (4) offering new on-board services. Examples of eligible expenses can include: train engineer staffing, fuel, train dispatching, station management, and overhead.",Estimated released date of Fiscal Year 2022 funds remains TBD
Public Transportation,Appalachian Development Public Transportation Assistance Program,Department of Transportation,Federal Transit Administration,"$137,437,828",,Year of Apportionment plus two years,Formula Grant,No,"States, Counties, Cities / Townships, Special Districts, Tribal Governments (federally recognized), Nonprofits with 501(c)(3) status, Nonprofits - without 501(c)(3) status",Provides funding to states in the Appalachian region to support the provision of public transit services in rural areas.,"Planning, Capital, Operating Assistance",Formula funds are apportioned after appropriations are received.
Public Transportation,Bus and Bus Facilities Competitive Grants,Department of Transportation,Federal Transit Administration,"$1,966,392,169",,Year of Allocation plus three years,Competitive Grant,No,"States, Counties, Cities / Townships, Special Districts, Tribal Governments (federally recognized)","Provides capital funding to replace, rehabilitate, purchase, or lease buses and bus related equipment and to rehabilitate, purchase, construct, or lease bus-related facilities.",Capital funding for purposes described above.,A Notice of Funding Opportunity for the Fiscal Year 2022 grant program is expected to be published in the first quarter of 2022.
Public Transportation,Bus and Bus Facilities Formula Grants,Department of Transportation,Federal Transit Administration,"$3,161,294,400",,Year of Apportionment plus three years,Formula Grant,No,"States, Counties, Cities / Townships, Special Districts, Tribal Governments (federally recognized)","Provides capital funding to replace, rehabilitate, purchase, or lease buses and bus related equipment and to rehabilitate, purchase, construct, or lease bus-related facilities.",Capital funding for purposes described above.,Formula funds are apportioned to states and urbanized areas after appropriations are received.
Public Transportation,Enhanced Mobility of Seniors and Individuals with Disabilities,Department of Transportation,Federal Transit Administration,"$2,193,105,343",,Year of Apportionment plus two years,Formula Grant,No,"States, Counties, Cities / Townships, Special Districts, Tribal Governments (federally recognized), Nonprofits with 501(c)(3) status, Nonprofits - without 501(c)(3) status","To provide financial assistance in meeting the transportation needs of seniors and individuals with disabilities where public transportation services are unavailable, insufficient or inappropriate. The Section 5310 program is designed to supplement FTA's other capital assistance programs by funding transportation projects for seniors and individuals with disabilities in all areas - large urban, small urban, and rural.","Capital, Operating Assistance and Planning",Formula funds are apportioned to states and urbanized areas after appropriations are received.
Public Transportation,Formula Grants for Rural Areas,Department of Transportation,Federal Transit Administration,"$4,109,463,374",Approximately $586 million will also be provided from the Growing States formula factors.,Year of Apportionment + 2,Formula Grant,No,"States, Counties, Cities / Townships, Special Districts, Tribal Governments (federally recognized), Nonprofits with 501(c)(3) status, Nonprofits - without 501(c)(3) status, private for-profit Intercity Bus carriers","To improve, initiate, or continue public transportation service in nonurbanized areas (rural areas and small cities under 50,000 in population) and to provide technical assistance for rural transportation providers. The Section 5311 program supports both the maintenance of existing public transportation services and the expansion of those services through the following program goals: enhancing access in rural areas to health care, shopping, education, employment, public services, and recreation; assisting in the maintenance, development, improvement, and use of public transportation systems in rural areas; encouraging and facilitating the most efficient use of all transportation funds used to provide passenger transportation in rural areas through the coordination of programs and services; providing financial assistance to help carry out national goals related to mobility for all, including seniors, individuals with disabilities, and low-income individuals; increasing availability of transportation options through investments in intercity bus services; assisting in the development and support of intercity bus transportation; encouraging mobility management, employment-related transportation alternatives, joint development practices, and transit-oriented development; and providing for the participation of private transportation providers in rural public transportation.The Public Transportation on Indian Reservations Program is a set-aside from the Formula Grants for Rural Areas program that consists of both a formula and competitive grant program for federally recognized Indian tribes or Alaska Native villages, groups or communities in rural areas.","Planning, Capital, Operating Assistance",Formula funds are apportioned to states and urbanized areas after appropriations are received.
Public Transportation,Pilot Program for Enhanced Mobility,Department of Transportation,Federal Transit Administration,"$24,102,620",,Year of Allocation plus two years,Competitive Grant,No,"States, Counties, Cities / Townships, Special Districts, Tribal Governments (federally recognized), Tribal Governments (other than federally recognized), Nonprofits with 501(c)(3) status, Nonprofits - without 501(c)(3) status",Competitive program to improve coordinated access and mobility,Capital,TBD
Public Transportation,Public Transportation on Indian Reservations Competitive,Department of Transportation,Federal Transit Administration,"$45,812,610",,Year of allocation plus two years,Competitive Grant,No,Federally recognized Indian Tribes and Alaska Native Villages,Provides direct funding to federally recognized Indian tribes to provide public transportation service on and around Indian reservations or Tribal land in rural areas,"Planning, Capital, Operating Assistance",A Notice of Funding Opportunity is expected in the first quarter of 2022.
Public Transportation,Public Transportation on Indian Reservations Formula,Department of Transportation,Federal Transit Administration,"$183,250,437",,Year of Apportionment plus two years,Formula Grant,No,Federally recognized Indian Tribes and Alaska Native Villages,Provides direct funding to federally recognized Indian tribes to provide public transportation service on and around Indian reservations or Tribal land in rural areas,"Planning, Capital, Operating Assistance",Formula funds are apportioned after appropriations are received.
Public Transportation,"Research, Development, Demonstration and Deployment Projects (Less Set Aside)",Department of Transportation,Federal Transit Administration,"$132,218,677",,"Non-expiring, available until expended","Cooperative Agreement, Contract, Competitive Grant",No,"States, Counties, Cities / Townships, Special Districts, Tribal Governments (federally recognized), Providers of Public Transportation, Private or Nonprofit organizations, Institutions of Higher Education, and Technical or Community Colleges.","Provides funding to assist innovative projects and activities that advance and sustain safe, efficient, equitable, climate-friendly public transportation. Eligible research and demonstrations under this program explore novel approaches to improve public transportation service � especially for transit-dependent individuals; advance vehicle and system technologies for safety, energy efficiency, and operational performance; use data for enhanced insights; and undertake other activities that help transit agencies meet equity, safety, climate change and transformation goals for a safer, environmentally cleaner, socially just and connected public transportation system.","Research, innovative development, deployment, demonstration, evaluation activities",TBD
Public Transportation,State of Good Repair Grants,Department of Transportation,Federal Transit Administration,"$21,640,412,832",,Year of Apportionment + 3,Formula Grant,No,"States, Counties, Cities / Townships, Special Districts, Tribal Governments (federally recognized)","To assist in funding capital projects for existing fixed guideway systems (including rail, bus rapid transit, and passenger ferries) and high intensity motorbus systems (buses operating in high-occupancy vehicle lanes) to maintain public transportation systems in a state of good repair and to ensure public transit operates safely, efficiently, reliably, and sustainably so that communities can offer balanced transportation choices that helps to improve mobility, reduce congestion, and encourage economic development.",Capital,Formula funds are apportioned to states and urbanized areas after appropriations are received.
Public Transportation,Strengthening Mobility and Revolutionizing Transportation (SMART) Grants,Department of Transportation,Office of the Secretary,"$500,000,000",,Available until expended,Competitive Grant,Yes,(A) A State; (B) a political subdivision of a State; (C) a Tribal government; (D) a public transit agency or authority; (E) a public toll authority; (F) a metropolitan planning organization; and (G) a group of 2 or more eligible entities described in any,"The Office of the Secretary's Strengthening Mobility and Revolutionizing Transportation Grant program provides supplemental funding grants to rural, midsized, and large communities to conduct demonstration projects focused on advanced smart city or community technologies and systems in a variety of communities to improve transportation efficiency and safety.","In general, a Strengthening Mobility and Revolutionizing Transportation grant may be used to carry out a project that demonstrates at least one of the following:Coordinate Automation Connected VehiclesIntelligent, sensor-based infrastructureSystems integrationCommerce delivery and logisticsLeveraging use of innovative aviation technologySmart gridSmart technology traffic signals.",A Notice of Funding Opportunity is expected in the second or third quarter of 2022.
Public Transportation,Urbanized Area Formula Grants,Department of Transportation,Federal Transit Administration,"$33,390,947,107",Approximately $3.3 billion will also be provided from the Growing States and High-Density states formula factors.,Year of Allocation + 5,Formula Grant,No,"States, Counties, Cities / Townships, Special Districts, Tribal Governments (federally recognized)","The Urbanized Area Formula Funding program (49 U.S.C. 5307) makes federal resources available to urbanized areas and to governors for transit capital and operating assistance in urbanized areas and for transportation-related planning. An urbanized area is an incorporated area with a population of 50,000 or more that is designated as such by the U.S. Department of Commerce, Bureau of the Census. Operating expenses are only eligible for urbanized areas under 200,000 in population or recipients with 100 or fewer buses. Funds are also provided to states for state safety oversight activities.","Planning, Capital, Operating Assistance",Formula funds are apportioned to states and urbanized areas after appropriations are received.
Public Transportation,Urbanized Area Passenger Ferry Program,Department of Transportation,Federal Transit Administration,"$150,000,000",,Year of Allocation plus five years,Grant,No,"States, Counties, Cities / Townships, Special Districts, Tribal Governments (federally recognized)",Competitive program for passenger ferry capital projects in urbanized areas.,Capital,A Notice of Funding Opportunity is expected in the spring of 2022.
Resilience,Aquatic Ecosystem Restoration Projects,Department of Defense � Army Corps of Engineers,Construction,"$1,900,000,000",,Available until expended,Direct Federal,No,"In partnership with State, local, and Tribal governments the Corps would use funding to construct federally authorized aquatic ecosystem restoration projects.","This program funds the construction of authorized water resources projects to increase aquatic ecosystem restoration, including $1 billion for multi-purpose projects or programs that include aquatic ecosystem restoration as a purpose.",Authorized federal aquatic ecosystem restoration projects and programs.,The Army Corps will be issuing multiple contract awards during Fiscal Year 2022.
Resilience,Building Resilient Infrastructure and Communities (Robert T Stafford Act Section 203(i)),Department of Homeland Security�Federal Emergency Management Agency,Disaster Relief Fund,"$1,000,000,000",,Available until expended,Grant,No,"States, local, Tribal, and territorial governments","The Building Resilient Infrastructure and Communities program makes federal funds available to states, U.S territories, federally recognized Tribal governments, and local communities for hazard mitigation activities.","Federal Emergency Management Agency will provide financial assistance to eligible Building Resilient Infrastructure and Communities applicants for the following activities: Capability and Capacity-Building � Activities, which enhance the knowledge, skills, expertise, etc., of the current workforce to expand or improve the administration of mitigation assistance. This includes activities in the following sub-categories: building codes activities, partnerships, project scoping, mitigation planning and planning-related activities, and other activities; Mitigation Projects � Cost-effective projects designed to increase resilience and public safety; reduce injuries and loss of life; and reduce damage and destruction to property, critical services, facilities, and infrastructure from natural hazards and the effects of climate change; and Management Costs � Financial assistance to reimburse the recipient and subrecipient for eligible and reasonable indirect costs, direct administrative costs, and other administrative expenses associated with a specific mitigation measure or project in an amount up to 15 percent of the total amount of the grant award, of which not more than 10 percent of the total award amount may be used by the recipient and 5 percent by the subrecipient for such costs generally.","Applications for Fiscal Year 2022 are expected to open no later than September 30th, 2022."
Resilience,Community Wildfire Defense Grant Program For At-Risk Communities,Department of Agriculture,Forest Service,"$1,000,000,000",,Each annual $100m tranche has a 4-yr period of availability,Grant,Yes,"Private Forest Owners, Communities At Risk From Wildfire, Tribal Communities, State Forestry Agencies And Other Nonprofit Organizations",Provide grants to communities at risk from wildfire to develop or revise their community wildfire protection plans and carry out projects described within those plans. It will include a mix of formula and competitive funds.,Under development,Applications are expected to open early in 2023.
Resilience,Contracts And Agreements For Restoration On Federal Lands,Department of the Interior,Office of the Secretary,"$50,000,000",,"Funding available until expended for total amount across entire Program ($905 million), but portions of the total are allocated to specific Fiscal Years, each with a different period of availability",Contracts and Agreements,Yes,"Federal, State, Local, Tribal, Non-governmental Organizations","Contracts for ecological health restoration, to be enacted on no fewer than 10,000 acres of Federal land, including Indian forest land or rangeland","Entering into contracts, including stewardship contracts or agreements, to restore ecological health on Federal land, including Indian forest land or rangeland and for salaries and expenses associated with preparing and executing those contracts.",
Resilience,Cyber Response and Recovery Fund,Department of Homeland Security,Cybersecurity and Infrastructure Security Agency,"$100,000,000",,5 year,"Contract, Grant, Cooperative Agreement",Yes,"Federal, State, Local, Tribal, and Territorial, Public, and private sector entities","This fund is a provision of the Cyber Response and Recovery Act (Section 70601 of the Bipartisan Infrastructure Law). It is based on a Cyberspace Solarium Commission recommendation, and at a high level, is a cyber Stafford Act which also establishes a fund (the Cyber Response and Recovery Fund) that the Cybersecurity and Infrastructure Security Agency can tap into in the event of a significant cyber incidents when other resources are insufficient.","Coordinate asset response activities and engage in response and recovery activities, including grants or cooperative agreements in response to significant cyber incidents.",Funding is triggered by the Secretary�s determination of a significant incident.
Resilience,Department of Interior Wildfire Management - Burned Area Rehabilitation,Department of the Interior,Office of Wildland Fire,"$325,000,000",,Funding available until expended (but portions made available by fiscal year),"Direct federal spending, Interagency Agreement(s), Cooperative Agreement(s), Contract(s)",No,"Federal Agencies, Tribal Governments, and Businesses",To mitigate the damaging effects of wildfires and set landscapes on a path towards natural recovery and climate resilience through post-fire restoration and rehabilitation activities.,,"Estimated application opening date, 2nd quarter 2022."
Resilience,Department of Interior Wildfire Management - Preparedness,Department of the Interior,Office of Wildland Fire,"$245,000,000",,Funding available until expended (but portions made available by fiscal year),"Direct federal spending, Interagency Agreement(s), Cooperative Agreement(s) and/or Grant(s), possibly Contract(s)",No,"Federal Agencies, State agencies, Counties, Cities/Townships, Tribal Governments, and Possibly Businesses","The Preparedness Program funds a range of actions that helps the Federal government prepare to respond to wildland fire. These include hiring people, training them, tracking their qualifications, and planning our wildland fire response ahead of time. It also provides for the purchasing of equipment for early wildfire detection, real-time monitoring and radios to support interoperability with interagency partners; financial assistance to local communities to purchase slip-on tanks; and increases in firefighter pay and other firefighter workforce reforms.","To increase the compensation and number of Federal wildland firefighters to build a permanent, year-round workforce; increase the Nation's preparedness to fight wildfires through satellite detection and the procurement and placement of early-warning wildfire detection and real-time monitoring equipment; improve radio interoperability; increase training of youth, including Native youth, to accelerate the pace and scale of hazardous fuels treatments; and to provide financial assistance to local governments to purchase slip-on tanker units to ready trucks for firefighting.","Estimated application opening date, 2nd quarter 2022."
Resilience,Direct Federal Spending For Invasives,Department of the Interior,Office of the Secretary,"$100,000,000",,"Funding available until expended for total amount across entire Program ($905 million), but portions of the total are allocated to specific Fiscal Years, each with a different period of availability","Grant, Direct Federal Spending",Yes,"State, Tribal","Funding for invasive species detection, prevention, and eradication on private or public lands","Projects and programs for invasive species detection, prevention, and eradication, including conducting research and providing resources to facilitate detection of invasive species at points of entry and awarding grants for eradication of invasive species on non-Federal land and on Federal land",Estimated application opening date is TBD.
Resilience,Emergency Preparedness Grants,Department of Transportation,Pipeline and Hazardous Materials Safety Administration,"$234,125,000",,Available until expended,Grant,No,"States, Counties, Territories, Tribes, Cities / Townships, Businesses (Not for Profit), Emergency Response Organizations, and Hazardous Materials Enforcement Organizations.",The Hazardous Materials Grants Program is comprised of the following grants:Hazardous Materials Emergency Preparedness;Assistance for Local Emergency Response Training;Hazardous Materials Instructor Training; and Supplemental Public Sector Training.Program also includes the publication of the Hazardous Materials Emergency Response Guidebook and other outreach and training.,"To develop, improve, and carry out emergency plans including ascertaining flow patterns of hazardous material; to decide on the need for regional hazardous material emergency response teams; to train public sector employees to respond to accidents and incidents involving hazardous material; and to train hazardous materials safety employees to become instructors to extend the reach of hazardous materials training.",February 2022 Notice of Funding Opportunity will be issued in February 2022 with awards made in August 2022.
Resilience,Emergency Watershed Protection Program,Department of Agriculture,National Resources Conservation Service,"$300,000,000",,Available until expended,Technical and Financial Assistance,No,"Local sponsor representing owners, managers, and users of public, private, or Tribal lands are eligible for Emergency Watershed Protection Assistance if their watershed area has been damaged by a natural disaster.",Provides for design and construction of measures to help repair damages from a recent disaster to safeguard life and property.,Reduce threats to life or property by repairing severe soil erosion and impairments or restoring the hydraulic capacity to the natural environment in an economically/environmentally defensible & technically sound manner.,"Estimated application opening date, 1st quarter 2022."
Resilience,Financial Assistance To Facilities That Purchase And Process Byproducts For Ecosystem Restoration Projects,Department of Agriculture,Forest Service,"$400,000,000",,Available until expended,Grant,No,"States, Tribes","This program is responsible for management of programs with authority to dispose of National Forest System timber and non-timber forest products harvested for commercial, personal, and Tribal uses.","Focus areas include sale preparation, contract administration, purchaser suspension and debarment, special forest products, and related authorities and programs.","Estimated application opening date, 3rd quarter 2022."
Resilience,Firewood Banks,Department of Agriculture,Forest Service,"$8,000,000",,Each annual $1.6 million tranche has a 4-yr period of availability,Financial Assistance,Yes,"State, Tribe, Local Units Of Government, Non-Government Organizations",Under development,Under development,"Estimated application opening date, 1st quarter 2023."
Resilience,"Flood and Inundation Mapping and Forecasting, Water Modeling, and Precipitation Studies",Department of Commerce,National Oceanic and Atmospheric Administration,"$492,000,000",,4 year,Various,No,"States, Counties, Cities / Townships, Special Districts, Tribal Governments (Federally Recognized), Tribal Governments (Other Than Federally Recognized), Public Higher-Ed Institutions, Private Higher-Ed Institutions, Nonprofits With 501(C)(3) Status, Nonprofits.","The National Oceanic and Atmospheric Administration will transform water prediction by delivering operational, continental-scale coastal and inland flood models and mapping capabilities. These capabilities include flood forecasts and projections that will provide actionable decision support services equitably delivered to communities across the nation.",Coastal and inland flood and inundation mapping and forecasting and next-generation water modeling activities - including modernized precipitation frequency and probable maximum studies.,"Estimated application opening date, 2nd quarter 2022."
Resilience,Flood Mitigation Assistance Grants (National Flood Insurance Act Sec 1366),Department of Homeland Security�Federal Emergency Management Agency,National Flood Insurance Fund,"$3,500,000,000",,Available until expended,Grant,No,"States, local, Tribal, territorial governments, and local communities","The Flood Mitigation Assistance program makes federal funds available to states, U.S. territories, federally recognized Tribal governments, and local communities to reduce or eliminate the risk of repetitive flood damage to buildings and structures.","These grants are focused on projects that reduce flood risks posed to repetitively flooded properties insured under the National Flood Insurance Program. Federal Emergency Management Agency is distributing FY 2021 Flood Mitigation Assistance funding amount as follows: Project scoping (previously advance assistance) to develop community flood mitigation projects and/or individual flood mitigation projects that will subsequently reduce flood claims against the National Flood Insurance Program. Projects that address community flood risk for the purpose of reducing National Flood Insurance Program flood claim payments. Technical assistance to maintain a viable Flood Mitigation Assistance program over time. Planning sub-applications for the flood hazard component of State, Local, Territory, and Tribal Hazard Mitigation Plans and plan updates.","Applications for Fiscal Year 2022 are expected to open no later than September 30th, 2022"
Resilience,Forest Health Management on Federal Lands Program and Forest Health Management on Cooperative Lands Program,Department of Agriculture,Forest Service,"$100,000,000",,Each annual $20 million tranche has a four-year period of availability,Direct Federal Spending and Grants Non-Federal,No,"States, Tribes, And Other Federal Agencies","The Forest Health Management on Federal Lands program helps the National Forest System and other actively managed Federal lands to suppress forest insects and diseases. Forest Health Management on Federal Lands� work includes technical assistance, suppression on non-Federal lands. The program helps State agencies create more fire-adapted communities by implementing pre-fire prevention and mitigation programs and emphasizing pre-fire planning and risk reduction in the Wildland Urban Interface. The program funds important training in safer initial attack responses to wildfire that are also effective. Additionally, the program improves capacity to assist other Federal, State, and local agencies in aiding communities affected by fire and non-fire emergencies, such as hurricanes and floods.","Conduct surveys to detect and appraise insect infestations and disease conditions;Determine the biological, chemical, and mechanical measures necessary to prevent, retard, control, or suppress incipient, potential, threatening, or emergency insect infestations and disease conditions affecting trees;Plan, organize, direct, and perform measures necessary to prevent, retard, control, or suppress incipient, potential, threatening, or emergency insect infestations and disease epidemics affecting trees;Provide technical information, advice, and related assistance on the various techniques available to maintain a healthy forest;Develop applied technology and conduct pilot tests of research results prior to the full-scale application of such technology in affected forests;Promote the implementation of appropriate silvicultural or management techniques that may improve or protect the health of the forests of the United States.","Estimated application opening date, 4th quarter 2022."
Resilience,Grants For States And Tribes For Voluntary Restoration,Department of the Interior,Office of the Secretary,"$400,000,000",,"Funding is available until expended for total amount across entire Program ($905 million), but portions of the total are allocated to specific Fiscal Years, each with a different period of availability.",Grant,Yes,"State, Tribal","Grant programs to States, territories of the United States, and Indian Tribes for implementing voluntary restoration projects on private or public lands.",,
Resilience,Habitat Restoration,Department of Commerce,National Oceanic and Atmospheric Administration,"$491,000,000",,2 years for each annual tranche,Grant,No,"Non-Profit 501(C) Organizations, State And Territorial Government Agencies, Local Governments, Municipal Governments, Tribal Governments And Organizations, Educational Institutions, Or Commercial (For-Profit) Organizations.","The National Oceanic and Atmospheric Administration�s Office of Habitat Conservation will implement the habitat restoration funds through a competitive grants process with the purpose of restoring marine, estuarine, coastal, and Great Lakes ecosystem habitat as well as constructing or protecting ecological features that protect coastal communities from flooding or coastal storms.","The National Oceanic and Atmospheric Administration�s Office of Habitat Conservation protects and restores habitat to sustain fisheries, recover protected species, and maintain resilient coastal ecosystems and communities. Typical projects include removing dams and other barriers, reconnecting coastal wetlands, and rebuilding coral and oyster reefs. The Office of Habitat Conservation will provide technical assistance from project conception to completion and explore ways in which this funding can be used to support underserved communities.","Estimated application opening date, 2nd quarter 2022."
Resilience,"Hazard Mitigation Revolving Loan Funds/Safeguarding Tomorrow through Ongoing Risk Mitigation (STORM) Act (Robert T Stafford Act, Sec 205)",Department of Homeland Security�Federal Emergency Management Agency,Federal Assistance,"$500,000,000",,Available until expended,Grants,Yes,A state or Indian Tribal Government that has received a major disaster declaration during the 5-year period ending on the date of enactment of the STORM Act.,Capitalization grants to state and eligible Tribal governments for the establishment revolving loan funds to provide hazard mitigation assistance to local governments.,,
Resilience,National Oceans and Coastal Security Fund,Department of Commerce,National Oceanic and Atmospheric Administration,"$492,000,000",,2 years for each annual tranche,Grant,No,"Non-Profit 501(C) Organizations, State And Territorial Government Agencies, Local Governments, Municipal Governments, Tribal Governments And Organizations, Educational Institutions, Or Commercial (For-Profit) Organizations",,"Established in 2018, the National Coastal Resilience Fund invests in conservation projects that restore or expand natural features such as coastal marshes and wetlands, dune and beach systems, oyster and coral reefs, forests, coastal rivers and floodplains, and barrier islands that minimize the impacts of storms and other naturally occurring events on nearby communities. Geographically, the NCRF funds will focus on coastal areas of U.S. coastal states, including the Great Lakes states, U.S. territories, and coastal Tribal lands. The additional funding will enable NCRF to provide increased support for communities most vulnerable to climate impacts, including those who have been historically disadvantaged.","Estimated application opening date, 2nd quarter 2022."
Resilience,National Seed Strategy,Department of Agriculture,Forest Service,"$60,000,000",,Each annual $12m tranche has a four-year period of availability,Grants - non federal,Yes,"State, Tribe, Local Units Of Government, Non-Government Organizations",Under development,Under development,"Estimated application opening date, 4th quarter 2022."
Resilience,Ocean And Coastal Observing Systems,Department of Commerce,National Oceanic and Atmospheric Administration,"$100,000,000",,2 years for each annual tranche,Various,No,"States, Counties, Cities / Townships, Special Districts, Tribal Governments (Federally Recognized), Tribal Governments (Other Than Federally Recognized), Independent School Districts, Public Higher-Ed Institutions, Private Higher-Ed Institutions, Nonprofits, internal.","National Oceanic and Atmospheric Administration will support and enhance various critical observing systems in the ocean, coasts, and Great Lakes. Many of National Oceanic and Atmospheric Administration�s observing systems have been operating for decades and require investment to maintain reliability as well as expand geographic coverage.","This funding will support a number of projects including refurbishments and technology upgrades of observing infrastructure in the U.S. Integrated Ocean Observing Systems Regional Associations, support for the National Water Level Observation Network, design engineering for Airborne Phased Array Radar, and ship time for deployment and system verification of the new capitalized Tropical Atmosphere-Ocean moorings.","Estimated application opening date, 2nd quarter 2022."
Resilience,Ocean And Coastal Observing Systems,Department of Commerce,National Oceanic and Atmospheric Administration,"$50,000,000",,3 year,Various,No,"States, Counties, Cities / Townships, Special Districts, Tribal Governments (Federally Recognized), Tribal Governments (Other Than Federally Recognized), Independent School Districts, Public Higher-Ed Institutions, Private Higher-Ed Institutions, Nonprofit",National Oceanic and Atmospheric Administration will support and enhance two critical ocean observing systems.,National Oceanic and Atmospheric Administration will modernize two critical ocean observing systems: The Tropical Atmosphere Ocean array in the equatorial Pacific and the Deep-ocean Assessment and Reporting of Tsunami network.,"Estimated application opening date, 2nd quarter 2022."
Resilience,Pollution Prevention Grants,Environmental Protection Agency,State and Tribal Assistance Grants,"$100,000,000",,Available until expended,Grant,No,"States, Tribes, State-Sponsored Institutions, Tribal Institutions","Grantees deliver technical assistance to businesses � including those communities with environmental justice concerns � to identify and adopt source reduction practices and technologies that benefit businesses, communities, and local economies. Pollution Prevention means reducing or eliminating pollutants from entering any waste stream or otherwise being released into the environment prior to recycling, treatment, or disposal.","Specific technical assistance available to businesses seeking information about source reduction opportunities, including funding for experts to provide on-site technical advice to businesses and to assist in the development of source reduction plans; targeted assistance to businesses for whom lack of information is an impediment to source reduction; or training in source reduction techniques (where such training may be provided through local engineering schools or other appropriate means).",Available 1st quarter 2022
Resilience,"Promoting Resilient Operations for Transformative, Efficient, and Cost-Saving Transportation (PROTECT) - Discretionary",Department of Transportation,Federal Highway Administration,"$1,400,000,000",,4 year,Competitive Grant,Yes,"State (or political subdivision of a State), MPO, local government, special purpose district or public authority with a transportation function, Tribe, Federal land management agency (applying jointly with State(s)); Different eligibilities apply for at-risk coastal infrastructure grants.","PROTECT Grants will support planning, resilience improvements, community resilience and evacuation routes, and at-risk coastal infrastructure.","Highway, transit, and certain port projects are eligible.",
Resilience,"Provide Financial Assistance To States, Indian Tribes, And Units Of Local Government To Establish And Operate Reverse-911 Telecommunication Systems",Department of Agriculture,Forest Service,"$30,000,000",,Available until expended,Grant,Yes,State/Tribes,Establishment of reserve-911 telecommunication systems.,Establishment of reserve-911 telecommunication systems.,"Estimated application opening date, 3rd quarter 2022."
Resilience,Restoration Projects Via States And Tribes,Department of Agriculture,Forest Service,"$160,000,000",,Available until expended,Grant,No,"States, Tribes","This program is responsible for management of programs with authority to dispose of National Forest System timber and non-timber forest products harvested for commercial, personal, and Tribal uses.","Focus areas include sale preparation, contract administration, purchaser suspension and debarment, special forest products, and related authorities and programs.","Estimated application opening date, 3rd quarter 2022."
Resilience,Rural And Municipal Utility Advances Cybersecurity Grant And Technical Assistance Program,Department of Energy,"Cybersecurity, Energy Security, and Emergency Response","$250,000,000",,Available until expended,Grant / Cooperative Agreement / Contract,Yes,"Rural Electric Cooperatives, Municipally-Owned Electric Utilities, Other State-Owned Utilities, Small Investor-Owned Utilities","To provide grants and technical assistance to, and enter into cooperative agreements with, eligible entities to protect against, detect, respond to, and recover from cybersecurity threats.",(1) To deploy advanced cybersecurity technologies for electric utility systems; and (2) to increase the participation of eligible entities in cybersecurity threat information sharing programs.,"Estimated application opening date, 4th quarter 2022."
Resilience,Section 118 Of Water Resources Development Act of 2020,Department of Defense � Army Corps of Engineers,Investigations,"$30,000,000",,Available until expended,Direct Federal,Yes,"In partnership with State, local, and Tribal governments, the Army Corps would use funding to carryout feasibility studies",Pilot program to carry out feasibility studies for flood risk management and hurricane and storm damage risk reduction projects that incorporate natural features or nature-based features for rural communities and economically disadvantaged communities,All eligible parties requiring work for the qualifying infrastructure,The Army Corps will develop a spend plan allocating these funds in Fiscal Year 2023.
Resilience,State and Local Cybersecurity Grant Program,Department of Homeland Security,Cybersecurity and Infrastructure Security Agency,"$1,000,000,000",,Available until expended,Grant,Yes,"State, territorial, and Tribal governments or multi-entity groups of two or more eligible entities.","The State and Local Cybersecurity Grant Program makes available federal funds to state, local, and Tribal governments to address cybersecurity risks and cybersecurity threats to information systems that they own or operate.","Develop and revise cybersecurity plans; implement elements of the cybersecurity plan (including individual projects); address imminent cybersecurity threats, as confirmed by the Department of Homeland Secretary, acting through the Cybersecurity and Infrastructure Security Agency Director; grants management and administration (5% maximum); any other appropriate activity determined by the Department of Homeland Security Secretary, acting through the Cybersecurity and Infrastructure Security Agency Director.",Applications will likely open during the third quarter of 2022.
Resilience,To Complete Or Initiate And Complete Studies That Were Authorized Prior To The Date Of This Act,Department of Defense � Army Corps of Engineers,Investigations,"$45,000,000",,Available until expended,Direct Federal,No,"In partnership with State, local, and Tribal governments, the Army Corps of Engineers would use funding to conduct feasibility studies of potential future water resources projects and design and engineering work for eligible water resources projects.","Funds studies to determine the engineering, econ feasibility of potential solutions to water and related land resources problems as well as preconstruction engineering and design",Authorized studies and pre-construction engineering and design work of authorized projects.,Ongoing
Resilience,Tribal Climate Resilience - Adaptation Planning,Department of the Interior,Indian Affairs - Operation of Indian Programs,"$86,000,000",,Available until expended,Contract/Compact,No,Tribal Governments - Recognized,"Tribal Climate Adaptation programs provides support for climate resilient planning to help sustain Tribal ecosystems and natural and cultural resources, economies, infrastructure, human health, and safety.","Funds may be used for trainings and workshops, vulnerability and risk assessment, supplementary monitoring for climate-related decision-making, scoping efforts, adaptation planning, travel support, ocean and coastal management planning, capacity building for adaptation planning, relocation, managed retreat, or protect-in-place assessment, planning, and design; and internships and youth engagement. Funding is not for routine monitoring programs or research.","Announcement of funding opportunity, 3rd quarter 2022."
Resilience,Tribal Climate Resilience - Community Relocation,Department of the Interior,Indian Affairs - Operation of Indian Programs,"$130,000,000",,Available until expended,Contract/Compact,Yes,Tribal Governments - Recognized,"Implementation of Community Relocation, Managed Retreat, or Protect-in-Place Actions to increase climate resilience.","Funds are designed to support tribes facing questions and decisions regarding managed retreat, expansion, protect-in-place, and relocation options due to threats from intensifying coastal or riverine erosion, flooding and permafrost degradation impacts, sea level rise, and other impacts. Assessment, monitoring, planning, design, and implementation (of actions identified in existing planning documents or with appropriate baseline data) are allowable. Activities should address climate change impacts which affect the viability of infrastructure and other resources at risk. Examples of planning activities can include vulnerability and risk assessments, design of expansion, protect-in-place or relocation activities; analysis of options; development of Tribal community mitigation efforts; design of emergency drills and exercises, and more.","Announcement of funding opportunity, 3rd quarter 2022."
Resilience,Water-Related Environmental Infrastructure Assistance,Department of Defense � Army Corps of Engineers,Construction,"$200,000,000",,Available until expended,Direct Federal,No,"In partnership with State, local, and Tribal governments, the Corps would use funding to construct federally authorized environmental infrastructure projects.","The program funds engineering and construction of authorized environmental infrastructure projects which provides safe water supply, waste disposal and pollution control to cities and towns to protect human health and safeguard the environment",Authorized environmental infrastructure projects,The Army Corps will be issuing multiple contract awards during Fiscal Year 2022.
Resilience,Watershed And Flood Prevention Operations,Department of Agriculture,National Resources Conservation Service,"$500,000,000",,Available until expended,Technical and Financial Assistance,No,"Local Sponsor Or Legal Subdivision Of State Or Tribal Government. Eligible Sponsors Include Cities, Counties, Towns, Conservation Districts, Or Any Federally-Recognized Native American Tribe Or Tribal Organization.","Provides planning, design and construction of measures that address resource concerns in a watershed.","Flood Prevention, Watershed Protection, Public Recreation, Public Fish and Wildlife, Agricultural Water Management, Municipal and Industrial Water Supply, or Water Quality Management.","Estimated application opening date, 1st quarter 2022."
Resilience,Wildfire,Department of Commerce,National Oceanic and Atmospheric Administration,"$50,000,000",,3 year,Various,No,"States, Counties, Cities / Townships, Special Districts, Tribal Governments (Federally Recognized), Tribal Governments (Other Than Federally Recognized), Public Higher-Ed Institutions, Private Higher-Ed Institutions, Nonprofits With 501(C)(3) Status","These funds will be used to support wildfire prediction, detection, observation, modeling, and forecasting.","National Oceanic and Atmospheric Administration will procure mission-critical infrastructure, advanced operational systems, and accelerate the development and delivery of fire weather decision support tools, cloud-based software, and dissemination services.","Estimated application opening date, 2nd quarter 2022."
Resilience,Wildfire,Department of Commerce,National Oceanic and Atmospheric Administration,"$50,000,000",,2 year,Various,No,"States, Counties, Cities / Townships, Special Districts, Tribal Governments (Federally Recognized), Tribal Governments (Other Than Federally Recognized), Public Higher-Ed Institutions, Private Higher-Ed Institutions, Nonprofits With 501(C)(3) Status, Nonp","These funds will be used to support wildfire prediction, detection, observation, modeling, and forecasting. National Oceanic and Atmospheric Administration will also engage the broader wildland fire weather community and stakeholders through grants, workshops, and a few Fire Weather Testbed.","National Oceanic and Atmospheric Administration will work with partners to improve weather, smoke, and fire behavior forecasts in order to give firefighters on the ground and in the air and first responders detection capabilities to keep communities safe. National Oceanic and Atmospheric Administration will provide information for improved risk management and resource planning and research into the impact of fires on air quality and health in order to improve community preparation for and resilience to fire. National Oceanic and Atmospheric Administration will also advance innovations in fire weather science through research, modeling, and testing","Estimated application opening date, 2nd quarter 2022."
Resilience,Wildfire Management - Fuels Management,Department of the Interior,Office of Wildland Fire,"$878,000,000",,Funding available until expended (but portions made available by fiscal year),"Direct Federal spending, Interagency Agreement(s), Cooperative Agreement(s), and Contract(s)",No,"Federal Agencies, State agencies, Tribal Governments, And Businesses","To protect vulnerable communities from wildfire while preparing our communities and natural landscapes for a changing climate, through hazardous fuels management strategies, including mechanical thinning, precommercial thinning in young stands, timber harvesting, prescribed fire, and installation of control locations such as fuel breaks.",,"Estimated application opening date, 2nd quarter 2022."
Resilience,Working Capital Fund,Department of the Interior,Office of the Secretary,"$100,000,000",,"Funding available until expended for total amount across entire Program ($905 million), but portions of the total are allocated to specific Fiscal Years, each with a different period of availability",Working Capital Fund,Yes,"Federal, State, Local,Tribal, Non-Governmental Organization",Working Capital Fund in support of contracts to restore ecological health on Federal lands,,
"Roads, Bridges and Major Projects",Bridge Investment Program,Department of Transportation,Federal Highway Administration,"$12,200,000,000",,4 year,Competitive Grant,Yes,"State, metropolitan planning organization (representing an area with a population of more than 200,000), local government, special purpose district or public authority with a transportation function, federal land management agency, Tribal government.","The Bridge Investment Program will support projects to improve bridge and culvert condition, safety, efficiency, and reliability.","Projects to replace, rehabilitate, preserve or protect one or more bridges on the National Bridge Inventory. Projects to replace or rehabilitate culverts to improve flood control and improve habitat connectivity for aquatic species.",Forthcoming.
"Roads, Bridges and Major Projects","Grants for Planning, Feasibility Analysis, and Revenue Forecasting (Bridge Investment Program Set-aside)",Department of Transportation,Federal Highway Administration,"$100,000,000",,4 year,Competitive Grant,Yes,"State, Metropolitan Planning Organization (w/ population greater than 200,000), Local government, Special purpose district or public authority with a transportation functions, federal land management agency, Tribal government","The Bridge Investment Program will support projects to improve bridge (and culvert) condition, safety, efficiency, and reliability.","Projects to replace, rehabilitate, preserve or protect one or more bridges on the National Bridge Inventory. Projects to replace or rehabilitate culverts to improve flood control and improve habitat connectivity for aquatic species.",TBD
"Roads, Bridges and Major Projects",Local and Regional Project Assistance Grants (RAISE),Department of Transportation,Office of the Secretary,"$7,500,000,000",,4 year,Competitive Grant,No,"(A) A State; (B) the District of Columbia; (C) any territory or possession of the United States; (D) a unit of local government; (E) a public agency or publicly chartered authority established by 1 or more States; (E) a special purpose district or public authority with a transportation function, including a port authority; (F) a Tribal government or a consortium of Tribal governments; (G) a partnership between Amtrak and 1 or more entities described in (A) through (F); and (H) a group of entities described in (A) through (G).",The RAISE program provides supplemental funding for grants to the State and local entities listed above on a competitive basis for projects that will have a significant local/regional impact.,"Projects eligible under RAISE include�a highway or bridge project eligible for assistance under title 23, United States Code;a public transportation project eligible for assistance under chapter 53 of title 49,United States Code;a passenger rail or freight rail transportation project eligible for assistance under title 49, United States Code;a port infrastructure investment, including inland port infrastructure and a land port-of-entry;the surface transportation components of certain eligible airport projects;a project for investment in a surface transportation facility located on Tribal land, the title or maintenance responsibility of which is vested in the Federal Government;a project to replace or rehabilitate a culvert or prevent stormwater runoff for the purpose of improving habitat for aquatic species; andany other surface transportation infrastructure project that the Secretary considers to be necessary to advance the goal of the program.",Applications will open in the first quarter of 2022.
"Roads, Bridges and Major Projects","National Culvert Removal, Replacement, & Restoration Grant",Department of Transportation,Office of the Secretary,"$1,000,000,000",,Available until expended,Competitive Grant,Yes,(1) A State; (2) a unit of local government; or (3) an Indian Tribe.,"The Office of the Secretary's National Culvert Removal, Replacement and Restoration program provides supplemental funding for grants to a State, local government, or an Indian Tribe on a competitive basis for projects that replace, remove, and/or repair culverts or weirs.","Establish an annual competitive grant program to award grants to eligible entities for projects for the replacement, removal, and repair of culverts or weirs that���(1) would meaningfully improve or restore fish passage for anadromous fish; and (2) with respect to weirs, may include-- (A) infrastructure to facilitate fish passage around or over the weir; and (B) weir improvements.",TBD
"Roads, Bridges and Major Projects",National Infrastructure Project Assistance (Megaprojects),Department of Transportation,Office of the Secretary,"$5,000,000,000",,Available until expended,Competitive Grant,Yes,"(A) A State or a group of States; (B) a metropolitan planning organization; (C) a unit of local government; (D) a political subdivision of a State; (E) a special purpose district or public authority with a transportation function, including a port authority;(F) a Tribal government or a consortium of Tribal governments;(G) a partnership between Amtrak and 1 or more entities described in subparagraphs (A) through (F); and (H) a group of entities described in any of subparagraphs (A) through (G).","The National Infrastructure Project Assistance Program will support large, complex projects that are difficult to fund by other means and likely to generate national or regional economic, mobility, or safety benefits.","Projects eligible under the Megaprojects program include�a highway or bridge project carried out on�the National Multimodal Freight Network of title 49, United States Code; ;the National Highway Freight Network, United States Code; or the National Highway System, United States Code;a freight intermodal (including public ports) or freight rail project that provides a public benefit;a railway-highway grade separation or elimination project;an intercity passenger rail project; and certain public transportation projects that are eligible for Federal Transit Administration funding of title 49,United States Code",February 2022 Selection criteria for the program will be posted on the Department of Transportation website in February 2022.
"Roads, Bridges and Major Projects",Nationally Significant Federal Lands and Tribal Projects,Department of Transportation,Federal Highway Administration,"$275,000,000",,4 year,Competitive Grant,No,"Any entity eligible to receive funding under the Tribal Transportation Program, Federal Lands Transportation Program, or Federal Lands Access Program. In addition, a State, county, or local government may apply if sponsored by an eligible Federal land management agency or Indian tribe.","The Nationally Significant Federal Lands and Tribal Projects program provides funding for the construction, reconstruction, and rehabilitation of nationally-significant Federal lands transportation projects and Tribal transportation projects.","Eligible projects are projects that are on a Federal lands transportation facility, a Federal lands access facility, or a Tribal transportation facility.",TBD
"Roads, Bridges and Major Projects",Nationally Significant Freight & Highway Projects (INFRA),Department of Transportation,Federal Highway Administration,"$7,250,000,000",,4 year,Competitive Grant,No,"(A) A State or a group of States.(B) A metropolitan planning organization that serves an urbanized area (as defined by the Bureau of the Census) with a population of more than 200,000 individuals.(C) A unit of local government or a group of local governments.(D) A political subdivision of a State or local government.(E) A special purpose district or public authority with a transportation function, including a port authority.(F) A Federal land management agency that applies jointly with a State or group of States.(G) A Tribal government or a consortium of Tribal governments.(H) A multistate corridor organization.(I) A multistate or multijurisdictional group of entities described in this paragraph.","The Nationally Significant Freight & Highway Projects program, also known as �INFRA�, awards competitive grants for multimodal freight and highway projects of national or regional significance to improve the safety, efficiency, and reliability of the movement of freight and people in and across rural and urban areas.","Projects that improve safety, generate economic benefits, reduce congestion, enhance resiliency, and hold the greatest promise to eliminate freight bottlenecks and improve critical freight movements.",Applications will open in the first quarter of 2022. Learn more about how to apply here.
"Roads, Bridges and Major Projects",Rural Surface Transportation Grant Program,Department of Transportation,Federal Highway Administration,"$1,000,000,000",,4 year,Competitive Grant,Yes,"State, Regional transportation planning organizations, Local governments, Tribal governments","Rural Surface Transportation Grant Program will support projects to improve and expand the surface transportation infrastructure in rural areas to increase connectivity, improve the safety and reliability of the movement of people and freight, and generate regional economic growth and improve quality of life.","Highway, bridge, or tunnel projects eligible under the National Highway Performance Program, Surface Transportation Block Grant Program, or the Tribal Transportation Program; highway freight project eligible under the National Highway Performance Program; highway safety improvement project; project on a publicly-owned highway or bridge improving access to certain facilities that support the economy of a rural area; integrated mobility management system, transportation demand management system, or on-demand mobility services",TBD
"Roads, Bridges and Major Projects",State Incentives Pilot Program (Set-aside within Nationally Significant Freight and Highway Projects - INFRA),Department of Transportation,Federal Highway Administration,"$750,000,000",,4 year,Competitive Grant,Yes,"States, Metropolitan Planning Organizations, Tribal governments, special-purpose districts and port authorities with a transportation function, and local governments","INFRA awards competitive grants for multimodal freight and highway projects of national or regional significance to improve the safety, efficiency, and reliability of the movement of freight and people.","Projects that improve safety, generate economic benefits, reduce congestion, enhance resiliency, and hold the greatest promise to eliminate freight bottlenecks and improve critical freight movements.",Applications will open in the first quarter of 2022. Learn more about how to apply here.
"Roads, Bridges and Major Projects",Tribal High Priority Projects Program,Department of Transportation,Federal Highway Administration,"$45,000,000",,4 year,Competitive Grant,No,Sovereign federally-recognized Tribal governments,"The Tribal High Priority Projects Program provides funding to Indian Tribes or a governmental subdivision of an Indian Tribe whose annual allocation of funding received under the Tribal Transportation Program is insufficient to complete the highest priority project of the Tribe, or to any Tribe that has an emergency or disaster occur on a Tribal transportation facility that renders the facility impassible or unusable.","Highest priority projects, emergency or disaster related projects",TBD
"Roads, Bridges and Major Projects",Tribal Transportation Facility Bridge (Set-aside),Department of Transportation,Federal Highway Administration,"$200,000,000",,4 year,Competitive grant,Yes,Tribal government,"The Bridge Investment Program will support projects to improve bridge (and culvert) condition, safety, efficiency, and reliability.","Projects to replace, rehabilitate, preserve or protect one or more bridges on the National Bridge Inventory. Projects to replace or rehabilitate culverts to improve flood control and improve habitat connectivity for aquatic species.",TBD
"Roads, Bridges and Major Projects",Tribal Transportation Facility Bridges (Bridge Formula Funding Set-Aside),Department of Transportation,Federal Highway Administration,"$825,000,000",,4 year,Distributed through the Tribal Transportation Program,No,Tribes,"The Bridge Formula Program sets aside 3% of the funds appropriated for the program for Tribal transportation facility bridges, which shall be administered as if made available under the Tribal Transportation Program","Funds can be used to plan, design, engineer, or construct bridges; to replace and rehabilitate bridges; and to improve bridges in poor condition.",TBD
"Roads, Bridges and Major Projects",Tribal Transportation Program,Department of Transportation,Federal Highway Administration,"$2,966,800,000",,4 year,Formula Grant Formula,No,Sovereign federally-recognized Tribal governments,"The Tribal Transportation Program supports projects to provide safe and adequate multimodal transportation and public road access to and within Indian reservations, Tribal lands, and Alaska Native Village communities.","Projects that support transportation safety, access, and mobility in Tribal communities.",Fiscal Year 2022 funds will be released with guidance on eligible uses of funds in the coming months.
Safety,Crash Data,Department of Transportation,National Highway Traffic Safety Administration,"$750,000,000",,4 year,Competitive Grants and Contracts,Yes,"Grants: States, US Territories, and Secretary of the Interior (for Indian Tribes)","Funding will be used pursuant to Bipartisan Infrastructure Law 24108 to improve crash data collections and analysis, specifically: to revise non-motorist data collection to distinguish individual personal conveyances like electric scooters and bicycles, update the Model Minimum Uniform Crash Criteria (MMUCC), collect additional data elements related to vulnerable road users, coordinate with Centers for Disease Control and Prevention on national database of pedestrian injuries & fatalities, increase participation in the Electronic Data Transfer protocol via new State grant program and internal investment, and expand the Crash Investigation Sampling System by adding sites, broadening scope, and adopting on-scene investigation protocols","Funding will be used pursuant to Bipartisan Infrastructure Law 24108 to improve crash data collections and analysis, specifically: to revise non-motorist data collection to distinguish individual personal conveyances like electric scooters and bicycles, update the Model Minimum Uniform Crash Criteria, collect additional data elements related to vulnerable road users, coordinate with Centers for Disease Control and Prevention on national database of ped injuries & fatalities, increase participation in Electronic Data Transfer protocol via new State grant program and internal investment, and expand the Crash Investigation Sampling System by adding sites, broadening scope, and adopting on-scene investigation protocols",Begin collection of new personal conveyance data elements January 2022; Form interagency team to address pedestrian injury and fatality database project January 2022.
Safety,High Priority Activities Program,Department of Transportation,Federal Motor Carrier Safety Administration,"$432,500,000",,Mixture of available until expended and 4-year funding,Grant and Cooperative Agreement,No,"States, local governments, federally recognized Indian tribes, other political jurisdictions as necessary, and any person","The High Priority Activities grant program is a discretionary (competitive) grant program designed to provide Federal financial assistance to enhance states� commercial vehicle safety plan activities, including commercial vehicle inspections, traffic enforcement, and outreach while supporting innovative technology development and/or new project(s) not included in the commercial vehicle safety plan that will have a positive impact on commercial vehicle safety. Other applicants, such as academia and safety associations are also eligible for these grants that improve safety. Overall this grant supports safety programs and innovative technology deployment with a goal of increasing efficiency improvements in exchanging commercial vehicle safety data.",The grant program provides financial assistance to carry out activities and projects that augment motor carrier safety which include: supporting participation in performance and registration information systems management; conducting safety data improvement projects; increasing public awareness and education on commercial vehicle safety; targeting unsafe driving in areas identified as high risk crash corridors; improving the safe and secure movement of hazardous materials; improving safe transportation of goods and persons in foreign commerce; demonstrating new technologies to improve commercial vehicle safety; and otherwise improving safety and compliance with commercial vehicle safety regulations ; and to support and maintain commercial safety information systems and networks.,February 2022 will issue a Notice of Funding Opportunity for this program in February 2022.
Safety,Highway Safety Programs,Department of Transportation,National Highway Traffic Safety Administration,"$1,992,000,000",,4 year,Formula Grant,No,"States, the Secretary of Interior for the Indian tribes, the District of Columbia, Puerto Rico, American Samoa, Guam, Commonwealth of the Northern Mariana Islands, and the U.S. Virgin Islands.","Section 402 funds are authorized by Congress and are available to the 50 States, the District of Columbia, Puerto Rico, the U. S. Territories and the Bureau of Indian Affairs. These funds are apportioned using statutory apportionment formula. These funds are provided to the State and Territorial Highway Safety Offices based on an approved highway safety plan that details problem identification, performance measures, countermeasures and projects using identified countermeasures to help reduce crashes, injuries and fatalities resulting from motor vehicle crashes.",To be specified in the implementing regulation,Full year supplemental funding under Bipartisan Infrastructure Law and continuing resolution funds as FAST Act extension were released December 2021. Remaining Fiscal Year 2021 funds will be released upon Fiscal Year 2022 appropriation.
Safety,Highway Safety Research & Development,Department of Transportation,National Highway Traffic Safety Administration,"$970,000,000",,4 year,"Grants, Cooperative Agreements, Contracts",No,"States, Counties, Cities / Townships, Special Districts, Tribal Governments (federally recognized), Tribal Governments (other than federally recognized), Independent School Districts, Public Higher-Ed Institutions, Private Higher-Ed Institutions, Nonprofits with 501(c)(3) status, Nonprofits - without 501(c)(3) status, Small Businesses, Businesses (other than small businesses), and / or Individuals","Research and development activities with respect to (1) highway and traffic safety systems and conditions, (2) human behavioral factors and their effect on highway and traffic safety, (3) evaluation of the effectiveness of countermeasures to increase highway and traffic safety, (4) development of technologies to detect drug impaired drivers, (5) driver education programs, State laws on highway and traffic safety; Cooperative research and evaluation to research and evaluate priority highway safety countermeasures; Collaborative research on in-vehicle technology to prevent alcohol-impaired driving; Education campaign to reduce incidence of vehicular heatstroke of children; Grant program to develop and implement State processes for informing consumers of recalls; and Evaluation of innovative highway safety countermeasures.",TBD via Notice of Funding Opportunity,Cooperative Grant for research on technologies for alcohol detection to prevent impaired driving via the Driver Alcohol Detection System for Safety in Fiscal Year 2022.Continuing funding for cooperative agreement with National Safety Council�s Road to Zero programs to support innovative and cross-cutting safety projects using the safe system approach in Fiscal Year 2022.
Safety,Railroad Crossing Elimination Grants,Department of Transportation,Federal Railroad Administration,"$3,000,000,000",,Available until expended,Competitive Grant,Yes,"-A State, including the District of Columbia, Puerto Rico, and other United States territories and possessions.-A political subdivision of a State.-Federally recognized Indian Tribe.-A unit of local government or a group of local governments.-A public port authority.-A metropolitan planning organization.-A group of entities described above.",To fund highway-rail or pathway-rail grade crossing improvement projects that focus on improving the safety and mobility of people and goods.,"Eligible projects include: (1) a grade separation or closure, including through the use of a bridge, embankment, tunnel, or combination thereof; (2) track relocation; (3) the improvement or installation of protective devices, signals, signs, or other measures to improve safety, provided that such activities are related to a separation or relocation project described previously; (4) other means to improve the safety and mobility of people and goods at highway-rail grade crossings (including technological solutions); and (5) a group of related projects described previously that would collectively improve the mobility of people and goods. The planning, environmental review, and design of projects previously described are also eligible.an eligible project described in paragraphs (1) through (5).",First round of funds (Fiscal Year 2022) was released December 2021. Next round of funding (Fiscal Year 2023) to be released October 2022.
Safety,Safe Streets and Roads for All,Department of Transportation,Office of the Secretary,"$5,000,000,000",,Available until expended,Competitive Grant,Yes,(A) A metropolitan planning organization; (B) a political subdivision of a State; (C) a federally recognized Tribal government; and (D) a multijurisdictional group of entities described in any of subparagraphs (A) through (C).,"The Office of the Secretary's Safe Streets and Roads for All Grant program provides supplemental funding to support local initiatives to prevent death and serious injury on roads and streets, commonly referred to as ��Vision Zero�� or ��Toward Zero Deaths�� initiatives.","The term ��eligible project�� means a project� (A) to develop a comprehensive safety action plan; (B) to conduct planning, design, and development activities for projects and strategies identified in a comprehensive safety action plan; or (C) to carry out projects and strategies identified in a comprehensive safety action plan.",Applications are expected to open in May 2022.
Safety,Vehicle Safety and Behavioral Research,Department of Transportation,National Highway Traffic Safety Administration,"$548,500,000",,4 year,"Grants, Cooperative Agreements, or Contracts",No,"States, Counties, Cities / Townships, Special Districts, Tribal Governments (federally recognized), Tribal Governments (other than federally recognized), Independent School Districts, Public Higher-Ed Institutions, Private Higher-Ed Institutions, Nonprofits with 501(c)(3) status, Nonprofits - without 501(c)(3) status, Small Businesses, Businesses (other than small businesses), and / or Individuals",To provide supplemental funding to accelerate vehicle and behavioral safety research.,Vehicle and behavioral safety,Establish cooperative agreements with stakeholder agencies beginning in June 2022.
Safety,Wildlife Crossings Pilot Program,Department of Transportation,Federal Highway Administration,"$350,000,000",,4 year,Grant,Yes,"State highway agency (or equivalent), Metropolitan Planning Organizations, Local government, Regional transportation authority, Special purpose district or public authority with a transportation function, Indian Tribe, Federal land management agency","The Wildlife Crossings Pilot program will support projects that seek to reduce the number of wildlife-vehicle collisions, and in carrying out that purpose, improve habitat connectivity",Projects to reduce wildlife-vehicle collisions,TBD
Water,Clean Water State Revolving Fund,Environmental Protection Agency,State and Tribal Assistance Grants,"$11,713,000,000",,Available until expended,Loans and Grants,No,"States initially receive funding, then provide funds to Water Utilities and/or Municipal and Other Eligible Entities. Tribes and Territories are also eligible to receive a portion of State Revolving Fund funds.","The Clean Water State Revolving Fund program is a federal-state partnership that provides communities low-cost financing for a wide range of water quality infrastructure projects. Under the Bipartisan Infrastructure Law, 49 percent of Clean Water State Revolving Fund funds shall be eligible to be grants or 100 percent principal forgiveness loans. The Clean Water State Revolving Fund program provides capitalization grants to States, which will provide a long-term source of State financing for construction of wastewater treatment facilities and implementation of other water quality management activities.","Capitalization grants are available to each State and to Tribes and territories for the purpose of establishing a Clean Water State Revolving Fund. State Revolving Fund programs provide financial assistance to local communities and publicly owned treatment systems for construction of wastewater and stormwater treatment facilities and collection systems; nonpoint source pollution management; construction, repair, or replacement of decentralized wastewater treatment systems; construction of nature-based infrastructure solutions; and other uses associated with the management of wastewater and stormwater.",Applicants apply through their State Revolving Fund programs. State deadlines vary.
Water,Clean Water State Revolving Fund-Emerging Contaminants,Environmental Protection Agency,State and Tribal Assistance Grants,"$1,000,000,000",,Available until expended,Grant,No,"States initially receive funding, then provide funds to Water Utilities and/or Municipal and Other Eligible Entities. Tribes and Territories are also eligible to receive a portion of State Revolving Fund funds.","Clean Water State Revolving Fund funding as described in the Clean Water State Revolving Fund program, with eligible projects limited to those that address emerging contaminants, such as PFAS.","States apply for a capitalization grant with no state match required. The states provide loans with principal forgiveness or grants to fund clean water infrastructure projects to address emerging contaminants, including PFAS. Further information will be forthcoming.",
Water,Drinking Water State Revolving Fund,Environmental Protection Agency,State and Tribal Assistance Grants,"$11,713,000,000",,Available until expended,Loans and Grants,No,"States initially receive funding, then provide funds to Water Utilities and/or Municipal and Other Eligible Entities. Tribes and Territories are also eligible to receive a portion of State Revolving Fund funds.","The Drinking Water State Revolving Fund is a financial assistance program to help water systems and states to achieve the health protection objectives of the Safe Drinking Water Act. States are required to give priority for the use of Drinking Water State Revolving Fund project funds to: Address the most serious risks to human health, ensure compliance with the requirements of the Safe Drinking Water Act, and assist systems most in need on a per household basis according to state affordability criteria. Not all drinking water compliance problems, however, can be solved through capital financing of infrastructure improvements. Under the Bipartisan Infrastructure Law, 49 percent of funds shall be eligible to be grants or 100 percent principal forgiveness loans.","Capitalization grants are available to each State, and Tribes and territories for the purpose of establishing a Drinking Water State Revolving Fund. This revolving fund provides loans and grants to water systems for eligible infrastructure projects including: construction of expansion of drinking water treatment plants and/or distribution systems; improving drinking water treatment; fixing leaky or old pipes (water distribution); improving sources of water supply; replacing or constructing finished water storage tanks; other infrastructure projects needed to protect public health.",Applicants apply through their State Revolving Fund program. State deadlines vary.
Water,Drinking Water State Revolving Fund Emerging Contaminants (incl. PFAS),Environmental Protection Agency,State and Tribal Assistance Grants,"$4,000,000,000",,Available until expended,Grant,No,"States initially receive funding, then provide funds to Water Utilities and/or Municipal and Other Eligible Entities. Tribes and Territories are also eligible to receive a portion of State Revolving Fund funds.","Drinking Water State Revolving Fund funding as described in the Drinking Water State Revolving Fund program, with eligible projects limited to those that address emerging contaminants, such as PFAS.","States apply for a capitalization grant with no state match required. The states provide loans with principal forgiveness or grants to fund drinking water infrastructure projects to address emerging contaminants, including PFAS. Further information will be forthcoming.",Applicants apply through their State Revolving Fund program. State deadlines vary.
Water,Drinking Water State Revolving Fund Lead Service Lines Replacement,Environmental Protection Agency,State and Tribal Assistance Grants,"$15,000,000,000",,Available until expended,Loans and Grants,No,"States initially receive funding, then provide funds to Water Utilities and/or Municipal and Other Eligible Entities. Tribes and Territories are also eligible to receive a portion of State Revolving Fund funds.","Drinking Water State Revolving Fund funding as described in the Drinking Water State Revolving Fund program, below, with eligible projects limited to lead service line replacement and associated activities related to identification, planning, design and removal. Under the Bipartisan Infrastructure Law, 49 percent of funds shall be eligible to be grants or 100 percent principal forgiveness loans.","States receive a capitalization grant with no state match required. The states provide low interest loans, principal forgiveness, and/or grants to replace lead service lines. Further information will be forthcoming.",Applicants apply through their State Revolving Fund program. State deadlines vary.
Water,Indian Health Service Sanitation Facilities Construction Program,Department of Health and Human Services,Indian Health Service,"$3,500,000,000","The law makes $700,000,000 available per year from 2022-2026.",Available until expended,"Indian Self-Determination and Education Assistance Act Agreements, Direct Federal Spending",No,Federally recognized Tribal governments.,"is the environmental engineering component of the Indian Health Service health delivery system. To support the Indian Health Service mission, the Sanitation Facilities Construction Program provides technical and financial assistance to American Indian tribes and Alaska Native villages for the cooperative development and construction of safe drinking water supply, sewage, and solid waste disposal facilities, and related support facilities.",Sanitation Facilities Constructions projects,TBD
Water,Indian Water Rights Settlements,Department of the Interior,Indian Affairs/Reclamation,"$2,500,000,000",,Available until expended,Contract/Compact/Trust Fund,No,Tribal Governments - Recognized,"To satisfy Federal obligations under Indian water rights settlement enacted as of November 15, 2021.","Transfer to funds or accounts authorized to receive discretionary appropriations or to satisfy other obligations identified by the Secretary of the Interior, under an Indian water settlement approved and authorized by an Act of Congress before the date of enactment of this Act.","Allocation of funding among eligible projects, TBD"
Water,Rural Water Projects,Department of the Interior,Bureau of Reclamation,"$1,000,000,000",,Available until expended,Project Funding,No,"Existing authorized projects - not for new opportunities - Tribal, Local","Funding for Rural Water will support the seven rural water projects that have been authorized by an Act of Congress before July 1, 2021, in accordance with the Reclamation Rural Water Supply Act of 2006 (43 U.S.C. 2401 et seq.).",Rural Water projects,Allocation of funding for Fiscal Year 2022 among eligible projects with Fiscal Year 2022 capability to execute the funds.
Water,"Safety of Dams, Water Sanitation, And Other Facilities",Department of the Interior,Indian Affairs - Construction,"$200,000,000",,Available until expended,Contract/Compact,No,Tribal Governments - Recognized,The Bureau of Indian Affairs Safety of Dams aims to reduce the potential loss of human life and property damage caused by dam failure by making Bureau of Indian Affairs dams as safe as practically possible. Safety of Dams is responsible for dams on Indian land. These dams form a significant part of the water-resources infrastructure on Indian reservations. The water sanitation and safety program supports improvement and repair projects that address public health and safety compliance issues at Bureau of Indian Affairs-owned drinking water and sanitation systems.,"Safety of Dams funding is planned to be used to accelerate rehabilitation activities using current prioritization methodology. Water sanitation, funds will address deferred maintenance and deficiencies identified in condition assessments, environmental health reviews and audit reports.","Announcement of initial project awards, 3rd quarter 2022."
Water,Soil Moisture and Snowpack Pilot Program,Department of Commerce,National Oceanic and Atmospheric Administration,"$1,000,000",In Fiscal Year 2022,2 year,Various,No,"States, Counties, Cities / Townships, Special Districts, Tribal Governments (Federally Recognized), Tribal Governments (Other Than Federally Recognized), Public Higher-Ed Institutions, Private Higher-Ed Institutions, Nonprofits With 501(C)(3) Status, Nonprofits - Without 501(C)(3) Status, Small Businesses, Businesses (Other Than Small Businesses), And / Or Individuals",The study of the soil moisture and snowpack monitoring network in the Upper Missouri River Basin pursuant to section 511(b)(3) of the Water Resources Development Act of 2020 (division AA of Public Law 116260) (see Provision 4 description).,The study of the soil moisture and snowpack monitoring network in the Upper Missouri River Basin,"Estimated application opening date, 2nd quarter 2022"
Water,Tribal Irrigation and Power Systems,Department of the Interior,Indian Affairs - Construction,"$50,000,000",,Available until expended,Contract/Compact,No,Tribal Governments - Recognized,"The program addresses deferred maintenance needs at 17 congressionally authorized irrigation projects located on Indian reservations across the Rocky Mountain, Northwest, Southwest, Navajo and Western Regions.",Address deferred maintenance and deficiencies identified in condition assessments and audit reports.,"Announcement of initial project awards, 3rd quarter 2022."
Water,Underground Injection Control Grants: Class VI wells,Environmental Protection Agency,State and Tribal Assistance Grants,"$50,000,000",,Available until expended,Grant,Yes,States and Tribes,"The Underground Injection Control Grants fund federal, state, and Tribal government agencies that oversee underground injection activities to prevent contamination of underground sources of drinking water from fluid injection practices. The funding in Bipartisan Infrastructure Law targets funding to Class VI wells utilized for carbon sequestration. The law includes an additional $25 million to support the permitting of these wells on top of the $50 million in grant funding.",Eligible entities shall use grants to defray the expenses related to the establishment and operation of a Class VI primacy program.,More information forthcoming.
Water,Water Infrastructure Improvements for the Nation Small and Underserved Communities Emerging Contaminants Grant Program,Environmental Protection Agency,State and Tribal Assistance Grants,"$5,000,000,000",,Available until expended,Grant,No,"States initially receive funding, then provide funds through grants to water utilities and other eligible entities in small and/or underserved/disadvantaged communities. Tribes and territories are also eligible to receive funds under this program.","This grant program provides grants to public water systems in small and underserved/disadvantaged communities that are unable to finance activities needed to comply with drinking water regulations. Bipartisan Infrastructure Law prioritizes the funding to focus on small and disadvantaged communities in addressing emerging contaminants, including PFAS.","Projects eligible for assistance include efforts that benefit small and disadvantaged communities in testing and remediating emerging contaminants, including PFAS, including water filtration. ""Disadvantaged Community� is one determined by the state to be disadvantaged under the affordability criteria established by the state under its authorities in the Safe Drinking Water Act, or may become a disadvantaged community as a result of carrying out a project or activity.�Small Community� is one that has a population 10,000 of fewer individuals and lacks the capacity to incur debt sufficient to finance a project to comply with the SDWA.",More information will be forthcoming. Applicants will apply through their state. State deadlines vary.
Water,Water Resources Development Act Data Acquisition,Department of Commerce,National Oceanic and Atmospheric Administration,"$25,000,000",,2 year,Various,No,"States, Counties, Cities / Townships, Special Districts, Tribal Governments (Federally Recognized), Tribal Governments (Other Than Federally Recognized), Public Higher-Ed Institutions, Private Higher-Ed Institutions, Nonprofits With 501(C)(3) Status, Nonprofits - Without 501(C)(3) Status, Small Businesses, Businesses (Other Than Small Businesses), And / Or Individuals","Section 511(b)(1) and (2) of the Water Resources Development Act of 2020 (division AA of Public Law 116260) requires the National Oceanic and Atmospheric Administration to establish a pilot program within the National Mesonet Program for the acquisition and use of data generated by a U.S. Army Corps of Engineers -led initiative. Army Corps of Engineers is augmenting existing mesonet sites in 5 networks in the Upper Missouri River Basin with new soil moisture and snowpack instrumentation and installing new sites to reach a total of 540 sites outfitted with the new instrumentation by the end of Fiscal Year 2026. To support these efforts, the National Oceanic and Atmospheric Administration will establish the Soil Moisture and Snowpack Monitoring Pilot Program, which will acquire data that is generated by the network being installed in the Upper Missouri River Basin from 2023 through 2025. The National Weather Service National Mesonet Program supports a public-private partnership of nearly four-dozen mesonet networks operated by the states and the private sector providing hydrometeorological observational data at more than 30,000 sites nationwide.","Establishment of the Soil Moisture and Snowpack Monitoring Pilot Program, which will acquire data that is generated by the network being installed in the Upper Missouri River Basin.","Estimated application opening date, 2nd quarter 2022"
Other,Appalachian Area Development: Allocations to ARC States,Appalachian Regional Commission,Appalachian Regional Commission,"$100,000,000",,Available until expended,"Grant, Cooperative Agreement",No,"States and local governments, Non-Profits both with and without 501c3 status","Program will provide Area Base Development Program grant allocations to ARC's States for activities that help bring the 13-state Appalachian Region into economic parity with the Nation. Each state will operate its own competitive application process. The ARC states are Alabama, Georgia, Kentucky, Maryland, Mississippi, New York, North Carolina, Ohio, Pennsylvania, South Carolina, Tennessee, Virginia, and West Virginia.",Eligible uses will support the Appalachian Regional Commission goals of Building Appalachian Businesses; Building Appalachia�s Workforce Ecosystem; Building Appalachia�s Infrastructure; Building Regional Culture and Tourism; and Building Community Leaders and Capacity.,"Notice of Funding Opportunity released February 22nd, 2022."
Other,Appalachian Area Development: Community Capacity Initiative,Appalachian Regional Commission,Appalachian Regional Commission,"$10,000,000",,Available until expended,"Grant, Cooperative Agreement",No,"States and local governments, Non-Profits both with and without 501c3 status","Program will build capacity throughout Appalachian communities to enable communities to deploy the substantially increased funding opportunities provided by the Federal Government. Funds will be used for development of large-scale project development assistance including, but not limited to, continuing and expanding on the Commission�s current community capacity pilot, providing significant amounts in direct support to Non-Profits, State/Local Governments, and Local Development Districts for community capacity activities, and deploy resources flexibly to meet the growing need for community-specific capacity activities.",Eligible uses will support the Appalachian Regional Commission goals of Building Appalachian Businesses; Building Appalachia�s Workforce Ecosystem; Building Appalachia�s Infrastructure; Building Regional Culture and Tourism; and Building Community Leaders and Capacity.,"Notice of Funding Opportunity released May 22nd, 2022."
Other,Appalachian Area Development: Regional Multistate Initiative,Appalachian Regional Commission,Appalachian Regional Commission,"$80,000,000",,Available until expended,"Grant, Cooperative Agreement",No,"States and local governments, Non-Profits both with and without 501c3 status",Program will provide support for multistate regional economic and community development projects throughout the Appalachian Regional Commission region through planning and implementation grants reviewed and awarded on a rolling basis.,Eligible uses will support the Appalachian Regional Commission goals of Building Appalachian Businesses; Building Appalachia�s Workforce Ecosystem; Building Appalachia�s Infrastructure; Building Regional Culture and Tourism; and Building Community Leaders and Capacity.,"Notice of Funding Opportunity released May 22nd, 2022."
Other,Appalachian Regional Commission Funds,Appalachian Regional Commission,Appalachian Regional Commission,"$800,000,000",,Available until expended,"Grant, Cooperative Agreement",No,"States and local governments, Non-Profits both with and without 501c3 status","The Appalachian Regional Commission is engaged in planning for the allocation of Bipartisan Infrastructure Law advance appropriations for fiscal years 2023, 2024, 2025 and 2026. Programs funded by those appropriations will support activities that help bring the 13-state Appalachian Region into economic parity with the Nation. The ARC states are Alabama, Georgia, Kentucky, Maryland, Mississippi, New York, North Carolina, Ohio, Pennsylvania, South Carolina, Tennessee, Virginia, and West Virginia.",Eligible uses are expected to support the Appalachian Regional Commission goals of Building Appalachian Businesses; Building Appalachia�s Workforce Ecosystem; Building Appalachia�s Infrastructure; Building Regional Culture and Tourism; and Building Community Leaders and Capacity.,"First funds released on May 23rd, 2023."
